{"text_format":"3","workbook":"xlsx","n_sheets":6,"sheets":["Informācijas panelis","Pārdošana","Ienākumi","Izdevumi","Nodokļi","Kategorijas"],"not_rendered":{"images":1,"defined_names":34},"read":"whole","date_system":"1900"}

{"sheet":"Informācijas panelis","index":0,"n_rows":19,"n_cols":8,"rows_kept":19,"merged":[[0,2,0,4],[0,6,3,7],[4,1,4,7]]}
[null,"Peļņas vai zaudējumu aprēķins","[Mēnesis vai Gads] beidzas ar [Diena-Mēnesis-Gads]"]
[null,"Uzņēmuma nosaukums","Norādīts ar 000"]
[null,"Pašreizējā bruto peļņa [L/J]",{"$f":"IFERROR(IF(Bruto_peļņas_kopsumma=0,\"-\",Bruto_peļņas_kopsumma/Pārdošanas_ieņēmumu_kopsumma),\"-\")","v":"-"}]
[null,"Pašreizējā pārdošanas peļņa [T/J]",{"$f":"IFERROR(IF(Neto_peļņa=0,\"-\",Neto_peļņa/Pārdošanas_ieņēmumu_kopsumma),\"-\")","v":"-"}]
[null,"Nemainiet kategorijas šajā darblapā, citādi formulas var tikt bojātas. Izmantojiet kategoriju darblapu, lai pievienotu kategorijas un atjauninātu attiecīgās darblapas ar ierakstiem. Šī darblapa tiks automātiski atjaunināta."]
[null,"Kopsavilkums","Iepriekšējā perioda kopsumma","Budžeta kopsumma","Pašreizējā\nperioda kopsumma","Pašreizējā perioda kopsumma kā % no pārdošanas","% izmaiņu no iepriekšējā perioda kopsumma","% izmaiņu no budžeta kopsumma"]
[null,"Pārdošanas ieņēmumu kopsumma  [J]",{"$f":"SUMIFS(Pārdošanas_ieņēmumi_1[Iepriekšējais periods],Pārdošanas_ieņēmumi_1[Ieņēmumu veids],\"Pārdošanas ieņēmumi\")","v":0},{"$f":"SUMIFS(Pārdošanas_ieņēmumi_1[Budžets],Pārdošanas_ieņēmumi_1[Ieņēmumu veids],\"Pārdošanas ieņēmumi\")","v":0},{"$f":"SUMIFS(Pārdošanas_ieņēmumi_1[Pašreizējais periods],Pārdošanas_ieņēmumi_1[Ieņēmumu veids],\"Pārdošanas ieņēmumi\")","v":0},{"$f":"SUMIFS(Pārdošanas_ieņēmumi_1[Pašreizējais periods kā % no pārdošanas],Pārdošanas_ieņēmumi_1[Ieņēmumu veids],\"Pārdošanas ieņēmumi\")","v":{"v":0,"d":"0.00%"}},{"$f":"SUMIFS(Pārdošanas_ieņēmumi_1[% izmaiņas no iepriekšējā perioda],Pārdošanas_ieņēmumi_1[Ieņēmumu veids],\"Pārdošanas ieņēmumi\")","v":{"v":0,"d":"0.00%"}},{"$f":"SUMIFS(Pārdošanas_ieņēmumi_1[% izmaiņas no iepriekšējā perioda],Pārdošanas_ieņēmumi_1[Ieņēmumu veids],\"Pārdošanas ieņēmumi\")","v":{"v":0,"d":"0.00%"}}]
[null,"Pārdošanas izmaksu kopsumma  [K]",{"$f":"SUMIFS(Pārdošanas_ieņēmumi_1[Iepriekšējais periods],Pārdošanas_ieņēmumi_1[Ieņēmumu veids],\"Pārdošanas izmaksas\")","v":0},{"$f":"SUMIFS(Pārdošanas_ieņēmumi_1[Budžets],Pārdošanas_ieņēmumi_1[Ieņēmumu veids],\"Pārdošanas izmaksas\")","v":0},{"$f":"SUMIFS(Pārdošanas_ieņēmumi_1[Pašreizējais periods],Pārdošanas_ieņēmumi_1[Ieņēmumu veids],\"Pārdošanas izmaksas\")","v":0},{"$f":"SUMIFS(Pārdošanas_ieņēmumi_1[Pašreizējais periods kā % no pārdošanas],Pārdošanas_ieņēmumi_1[Ieņēmumu veids],\"Pārdošanas izmaksas\")","v":{"v":0,"d":"0.00%"}},{"$f":"SUMIFS(Pārdošanas_ieņēmumi_1[% izmaiņas no iepriekšējā perioda],Pārdošanas_ieņēmumi_1[Ieņēmumu veids],\"Pārdošanas izmaksas\")","v":{"v":0,"d":"0.00%"}},{"$f":"SUMIFS(Pārdošanas_ieņēmumi_1[% izmaiņas no budžeta],Pārdošanas_ieņēmumi_1[Ieņēmumu veids],\"Pārdošanas izmaksas\")","v":{"v":0,"d":"0.00%"}}]
[null,"Pārdošanas un mārketinga izdevumu kopsumma  [M]",{"$f":"SUMIFS(Pamatdarbības_izdevumi[Iepriekšējais periods],Pamatdarbības_izdevumi[Izdevumu veids],\"Pārdošana un mārketings\")","v":0},{"$f":"SUMIFS(Pamatdarbības_izdevumi[Budžets],Pamatdarbības_izdevumi[Izdevumu veids],\"Pārdošana un mārketings\")","v":0},{"$f":"SUMIFS(Pamatdarbības_izdevumi[Pašreizējais periods],Pamatdarbības_izdevumi[Izdevumu veids],\"Pārdošana un mārketings\")","v":0},{"$f":"SUMIFS(Pamatdarbības_izdevumi[Pašreizējais periods kā % no pārdošanas],Pamatdarbības_izdevumi[Izdevumu veids],\"Pārdošana un mārketings\")","v":{"v":0,"d":"0.00%"}},{"$f":"SUMIFS(Pamatdarbības_izdevumi[% izmaiņas no iepriekšējā perioda],Pamatdarbības_izdevumi[Izdevumu veids],\"Pārdošana un mārketings\")","v":{"v":0,"d":"0.00%"}},{"$f":"SUMIFS(Pamatdarbības_izdevumi[% izmaiņas no budžeta],Pamatdarbības_izdevumi[Izdevumu veids],\"Pārdošana un mārketings\")","v":{"v":0,"d":"0.00%"}}]
[null,"Izpētes un attīstības izdevumu kopsumma  [N]",{"$f":"SUMIFS(Pamatdarbības_izdevumi[Iepriekšējais periods],Pamatdarbības_izdevumi[Izdevumu veids],\"Izpēte un attīstība\")","v":0},{"$f":"SUMIFS(Pamatdarbības_izdevumi[Budžets],Pamatdarbības_izdevumi[Izdevumu veids],\"Izpēte un attīstība\")","v":0},{"$f":"SUMIFS(Pamatdarbības_izdevumi[Pašreizējais periods],Pamatdarbības_izdevumi[Izdevumu veids],\"Izpēte un attīstība\")","v":0},{"$f":"SUMIFS(Pamatdarbības_izdevumi[Pašreizējais periods kā % no pārdošanas],Pamatdarbības_izdevumi[Izdevumu veids],\"Izpēte un attīstība\")","v":{"v":0,"d":"0.00%"}},{"$f":"SUMIFS(Pamatdarbības_izdevumi[% izmaiņas no iepriekšējā perioda],Pamatdarbības_izdevumi[Izdevumu veids],\"Izpēte un attīstība\")","v":{"v":0,"d":"0.00%"}},{"$f":"SUMIFS(Pamatdarbības_izdevumi[% izmaiņas no budžeta],Pamatdarbības_izdevumi[Izdevumu veids],\"Izpēte un attīstība\")","v":{"v":0,"d":"0.00%"}}]
[null,"Vispārīgo un administratīvo izdevumu kopsumma  [O]",{"$f":"SUMIFS(Pamatdarbības_izdevumi[Iepriekšējais periods],Pamatdarbības_izdevumi[Izdevumu veids],\"Vispārīgie un administratīvie\")","v":0},{"$f":"SUMIFS(Pamatdarbības_izdevumi[Budžets],Pamatdarbības_izdevumi[Izdevumu veids],\"Vispārīgie un administratīvie\")","v":0},{"$f":"SUMIFS(Pamatdarbības_izdevumi[Pašreizējais periods],Pamatdarbības_izdevumi[Izdevumu veids],\"Vispārīgie un administratīvie\")","v":0},{"$f":"SUMIFS(Pamatdarbības_izdevumi[Pašreizējais periods kā % no pārdošanas],Pamatdarbības_izdevumi[Izdevumu veids],\"Vispārīgie un administratīvie\")","v":{"v":0,"d":"0.00%"}},{"$f":"SUMIFS(Pamatdarbības_izdevumi[% izmaiņas no iepriekšējā perioda],Pamatdarbības_izdevumi[Izdevumu veids],\"Vispārīgie un administratīvie\")","v":{"v":0,"d":"0.00%"}},{"$f":"SUMIFS(Pamatdarbības_izdevumi[% izmaiņas no budžeta],Pamatdarbības_izdevumi[Izdevumu veids],\"Vispārīgie un administratīvie\")","v":{"v":0,"d":"0.00%"}}]
[null,"Citu pamatdarbības izdevumu kopsumma [P]",{"$f":"Pamatdarbības_izdevumi[[#Totals],[Iepriekšējais periods]]-SUM(C9:C11)","v":0},{"$f":"Pamatdarbības_izdevumi[[#Totals],[Budžets]]-SUM(D9:D11)","v":0},{"$f":"Pamatdarbības_izdevumi[[#Totals],[Pašreizējais periods]]-SUM(E9:E11)","v":0},{"$f":"Pamatdarbības_izdevumi[[#Totals],[Pašreizējais periods kā % no pārdošanas]]-SUM(F9:F11)","v":{"v":0,"d":"0.00%"}},{"$f":"Pamatdarbības_izdevumi[[#Totals],[% izmaiņas no iepriekšējā perioda]]-SUM(G9:G11)","v":{"v":0,"d":"0.00%"}},{"$f":"Pamatdarbības_izdevumi[[#Totals],[% izmaiņas no budžeta]]-SUM(H9:H11)","v":{"v":0,"d":"0.00%"}}]
[null,"Citi ienākumi  [S]",{"$f":"Ienākumi[[#Totals],[Iepriekšējais periods]]","v":0},{"$f":"Ienākumi[[#Totals],[Budžets]]","v":0},{"$f":"Ienākumi[[#Totals],[Pašreizējais periods]]","v":0},{"$f":"Ienākumi[[#Totals],[Pašreizējais periods kā % no pārdošanas]]","v":{"v":0,"d":"0.00%"}},{"$f":"Ienākumi[[#Totals],[% izmaiņas no iepriekšējā perioda]]","v":{"v":0,"d":"0.00%"}},{"$f":"Ienākumi[[#Totals],[% izmaiņas no budžeta]]","v":{"v":0,"d":"0.00%"}}]
[null,"Nodokļu kopsumma  [T]",{"$f":"Nodokļi[[#Totals],[Iepriekšējais periods]]","v":0},{"$f":"Nodokļi[[#Totals],[Budžets]]","v":0},{"$f":"Nodokļi[[#Totals],[Pašreizējais periods]]","v":0},{"$f":"Nodokļi[[#Totals],[Pašreizējais periods kā % no pārdošanas]]","v":{"v":0,"d":"0.00%"}},{"$f":"Nodokļi[[#Totals],[% izmaiņas no iepriekšējā perioda]]","v":{"v":0,"d":"0.00%"}},{"$f":"Nodokļi[[#Totals],[% izmaiņas no budžeta]]","v":{"v":0,"d":"0.00%"}}]
[]
[null,"Bruto peļņa  [L=J-K]",{"$f":"IFERROR(C7-C8,\"-\")","v":0},{"$f":"IFERROR(D7-D8,\"-\")","v":0},{"$f":"IFERROR(Pārdošanas_ieņēmumu_kopsumma-Pārdošanas_izmaksu_kopsumma,\"-\")","v":0},{"$f":"IFERROR(IF(Pārdošanas_ieņēmumu_kopsumma=0,\"0,00%\",Bruto_peļņas_kopsumma/Pārdošanas_ieņēmumu_kopsumma),\"-\")","v":"0,00%"},{"$f":"IFERROR(IF(C16=Bruto_peļņas_kopsumma,0,IF(Bruto_peļņas_kopsumma>C16,ABS((Bruto_peļņas_kopsumma/C16)-1),IF(AND(Bruto_peļņas_kopsumma<C16,C16<0),-((Bruto_peļņas_kopsumma/C16)-1),(Bruto_peļņas_kopsumma/C16)-1))),\"-\")","v":{"v":0,"d":"0.00%"}},{"$f":"IFERROR(IF(D16=Bruto_peļņas_kopsumma,0,IF(Bruto_peļņas_kopsumma>D16,ABS((Bruto_peļņas_kopsumma/D16)-1),IF(AND(Bruto_peļņas_kopsumma<D16,D16<0),-((Bruto_peļņas_kopsumma/D16)-1),(Bruto_peļņas_kopsumma/D16)-1))),\"-\")","v":{"v":0,"d":"0.00%"}}]
[null,"Pamatdarbības izdevumu kopsumma  [Q=M+N+O+P]",{"$f":"IFERROR(C9+C10+C11+C12,\"-\")","v":0},{"$f":"IFERROR(D9+D10+D11+D12,\"-\")","v":0},{"$f":"IFERROR(Pārdošanas_un_mārketinga_kopsumma+Izpētes_un_attīstības_kopsumma+Vispārīgo_un_administratīvo_kopsumma+Citu_izdevumu_kopsumma,\"-\")","v":0},{"$f":"IFERROR(IF(Pārdošanas_ieņēmumu_kopsumma=0,\"0,00%\",Pamatdarbības_izdevumu_kopsumma/Pārdošanas_ieņēmumu_kopsumma),\"-\")","v":"0,00%"},{"$f":"IFERROR(IF(C17=Pamatdarbības_izdevumu_kopsumma,0,IF(Pamatdarbības_izdevumu_kopsumma>C17,ABS((Pamatdarbības_izdevumu_kopsumma/C17)-1),IF(AND(Pamatdarbības_izdevumu_kopsumma<C17,C17<0),-((Pamatdarbības_izdevumu_kopsumma/C17)-1),(Pamatdarbības_izdevumu_kopsumma/C17)-1))),\"-\")","v":{"v":0,"d":"0.00%"}},{"$f":"IFERROR(IF(D17=Pamatdarbības_izdevumu_kopsumma,0,IF(Pamatdarbības_izdevumu_kopsumma>D17,ABS((Pamatdarbības_izdevumu_kopsumma/D17)-1),IF(AND(Pamatdarbības_izdevumu_kopsumma<D17,D17<0),-((Pamatdarbības_izdevumu_kopsumma/D17)-1),(Pamatdarbības_izdevumu_kopsumma/D17)-1))),\"-\")","v":{"v":0,"d":"0.00%"}}]
[null,"Ienākumi no darbības  [R=L-Q]",{"$f":"IFERROR(C16-C17,\"-\")","v":0},{"$f":"IFERROR(D16-D17,\"-\")","v":0},{"$f":"IFERROR(Bruto_peļņas_kopsumma-Pamatdarbības_izdevumu_kopsumma,\"-\")","v":0},{"$f":"IFERROR(IF(Pārdošanas_ieņēmumu_kopsumma=0,\"0,00%\",Darbības_ienākumu_kopsumma/Pārdošanas_ieņēmumu_kopsumma),\"-\")","v":"0,00%"},{"$f":"IFERROR(IF(C18=Darbības_ienākumu_kopsumma,0,IF(Darbības_ienākumu_kopsumma>C18,ABS((Darbības_ienākumu_kopsumma/C18)-1),IF(AND(Darbības_ienākumu_kopsumma<C18,C18<0),-((Darbības_ienākumu_kopsumma/C18)-1),(Darbības_ienākumu_kopsumma/C18)-1))),\"-\")","v":{"v":0,"d":"0.00%"}},{"$f":"IFERROR(IF(D18=Darbības_ienākumu_kopsumma,0,IF(Darbības_ienākumu_kopsumma>D18,ABS((Darbības_ienākumu_kopsumma/D18)-1),IF(AND(Darbības_ienākumu_kopsumma<D18,D18<0),-((Darbības_ienākumu_kopsumma/D18)-1),(Darbības_ienākumu_kopsumma/D18)-1))),\"-\")","v":{"v":0,"d":"0.00%"}}]
[null,"Neto peļņa  [U=R+S-T]",{"$f":"IFERROR(C18+C13-C14,\"-\")","v":0},{"$f":"IFERROR(D18+D13-D14,\"-\")","v":0},{"$f":"Darbības_ienākumu_kopsumma+Citu_ienākumu_kopsumma-Nodokļu_kopsumma","v":0},{"$f":"IFERROR(IF(Pārdošanas_ieņēmumu_kopsumma=0,\"0,00%\",Neto_peļņa/Pārdošanas_ieņēmumu_kopsumma),\"-\")","v":"0,00%"},{"$f":"IFERROR(IF(C19=Neto_peļņa,0,IF(Neto_peļņa>C19,ABS((Neto_peļņa/C19)-1),IF(AND(Neto_peļņa<C19,C19<0),-((Neto_peļņa/C19)-1),(Neto_peļņa/C19)-1))),\"-\")","v":{"v":0,"d":"0.00%"}},{"$f":"IFERROR(IF(D19=Neto_peļņa,0,IF(Neto_peļņa>D19,ABS((Neto_peļņa/D19)-1),IF(AND(Neto_peļņa<D19,D19<0),-((Neto_peļņa/D19)-1),(Neto_peļņa/D19)-1))),\"-\")","v":{"v":0,"d":"0.00%"}}]

{"sheet":"Pārdošana","index":1,"n_rows":13,"n_cols":9,"rows_kept":13,"merged":[[0,7,2,8]]}
[null,{"$f":"Darbgrāmatas_nosaukums","v":"Peļņas vai zaudējumu aprēķins"}]
[null,{"$f":"Uzņēmuma_nosaukums","v":"Uzņēmuma nosaukums"},"Norādīts ar 000"]
[null,"Pārdošanas ieņēmumi",{"$f":"IFERROR(Pārdošanas_ieņēmumi,\"-\")","v":0}]
[null,"Ieņēmumu veids","Apraksts","Iepriekšējais periods","Budžets","Pašreizējais periods","Pašreizējais periods kā % no pārdošanas","% izmaiņas no iepriekšējā perioda","% izmaiņas no budžeta"]
[null,"Pārdošanas ieņēmumi","Produkts/Pakalpojums 1",{"$nulls":3},{"$f":"IFERROR(IF(Pārdošanas_ieņēmumi_1[[#Totals],[Pašreizējais periods]]=0,\"-\",Pārdošanas_ieņēmumi_1[Pašreizējais periods]/Pārdošanas_ieņēmumi),\"-\")","v":"-"},{"$f":"IFERROR(IF(Pārdošanas_ieņēmumi_1[[#This Row],[Iepriekšējais periods]]=Pārdošanas_ieņēmumi_1[[#This Row],[Pašreizējais periods]],0,IF(Pārdošanas_ieņēmumi_1[[#This Row],[Pašreizējais periods]]>Pārdošanas_ieņēmumi_1[[#This Row],[Iepriekšējais periods]],ABS((Pārdošanas_ieņēmumi_1[[#This Row],[Pašreizējais periods]]/Pārdošanas_ieņēmumi_1[[#This Row],[Iepriekšējais periods]])-1),IF(AND(Pārdošanas_ieņēmumi_1[[#This Row],[Pašreizējais periods]]<Pārdošanas_ieņēmumi_1[[#This Row],[Iepriekšējais periods]],Pārdošanas_ieņēmumi_1[[#This Row],[Iepriekšējais periods]]<0),-((Pārdošanas_ieņēmumi_1[[#This Row],[Pašreizējais periods]]/Pārdošanas_ieņēmumi_1[[#This Row],[Iepriekšējais periods]])-1),(Pārdošanas_ieņēmumi_1[[#This Row],[Pašreizējais periods]]/Pārdošanas_ieņēmumi_1[[#This Row],[Iepriekšējais periods]])-1))),\"-\")","v":{"v":0,"d":"0.00%"}},{"$f":"IFERROR(IF(Pārdošanas_ieņēmumi_1[[#This Row],[Budžets]]=Pārdošanas_ieņēmumi_1[[#This Row],[Pašreizējais periods]],0,IF(Pārdošanas_ieņēmumi_1[[#This Row],[Pašreizējais periods]]>Pārdošanas_ieņēmumi_1[[#This Row],[Budžets]],ABS((Pārdošanas_ieņēmumi_1[[#This Row],[Pašreizējais periods]]/Pārdošanas_ieņēmumi_1[[#This Row],[Budžets]])-1),IF(AND(Pārdošanas_ieņēmumi_1[[#This Row],[Pašreizējais periods]]<Pārdošanas_ieņēmumi_1[[#This Row],[Budžets]],Pārdošanas_ieņēmumi_1[[#This Row],[Budžets]]<0),-((Pārdošanas_ieņēmumi_1[[#This Row],[Pašreizējais periods]]/Pārdošanas_ieņēmumi_1[[#This Row],[Budžets]])-1),(Pārdošanas_ieņēmumi_1[[#This Row],[Pašreizējais periods]]/Pārdošanas_ieņēmumi_1[[#This Row],[Budžets]])-1))),\"-\")","v":{"v":0,"d":"0.00%"}}]
[null,"Pārdošanas ieņēmumi","Produkts/Pakalpojums 2",{"$nulls":3},{"$f":"IFERROR(IF(Pārdošanas_ieņēmumi_1[[#Totals],[Pašreizējais periods]]=0,\"-\",Pārdošanas_ieņēmumi_1[Pašreizējais periods]/Pārdošanas_ieņēmumi),\"-\")","v":"-"},{"$f":"IFERROR(IF(Pārdošanas_ieņēmumi_1[[#This Row],[Iepriekšējais periods]]=Pārdošanas_ieņēmumi_1[[#This Row],[Pašreizējais periods]],0,IF(Pārdošanas_ieņēmumi_1[[#This Row],[Pašreizējais periods]]>Pārdošanas_ieņēmumi_1[[#This Row],[Iepriekšējais periods]],ABS((Pārdošanas_ieņēmumi_1[[#This Row],[Pašreizējais periods]]/Pārdošanas_ieņēmumi_1[[#This Row],[Iepriekšējais periods]])-1),IF(AND(Pārdošanas_ieņēmumi_1[[#This Row],[Pašreizējais periods]]<Pārdošanas_ieņēmumi_1[[#This Row],[Iepriekšējais periods]],Pārdošanas_ieņēmumi_1[[#This Row],[Iepriekšējais periods]]<0),-((Pārdošanas_ieņēmumi_1[[#This Row],[Pašreizējais periods]]/Pārdošanas_ieņēmumi_1[[#This Row],[Iepriekšējais periods]])-1),(Pārdošanas_ieņēmumi_1[[#This Row],[Pašreizējais periods]]/Pārdošanas_ieņēmumi_1[[#This Row],[Iepriekšējais periods]])-1))),\"-\")","v":{"v":0,"d":"0.00%"}},{"$f":"IFERROR(IF(Pārdošanas_ieņēmumi_1[[#This Row],[Budžets]]=Pārdošanas_ieņēmumi_1[[#This Row],[Pašreizējais periods]],0,IF(Pārdošanas_ieņēmumi_1[[#This Row],[Pašreizējais periods]]>Pārdošanas_ieņēmumi_1[[#This Row],[Budžets]],ABS((Pārdošanas_ieņēmumi_1[[#This Row],[Pašreizējais periods]]/Pārdošanas_ieņēmumi_1[[#This Row],[Budžets]])-1),IF(AND(Pārdošanas_ieņēmumi_1[[#This Row],[Pašreizējais periods]]<Pārdošanas_ieņēmumi_1[[#This Row],[Budžets]],Pārdošanas_ieņēmumi_1[[#This Row],[Budžets]]<0),-((Pārdošanas_ieņēmumi_1[[#This Row],[Pašreizējais periods]]/Pārdošanas_ieņēmumi_1[[#This Row],[Budžets]])-1),(Pārdošanas_ieņēmumi_1[[#This Row],[Pašreizējais periods]]/Pārdošanas_ieņēmumi_1[[#This Row],[Budžets]])-1))),\"-\")","v":{"v":0,"d":"0.00%"}}]
[null,"Pārdošanas ieņēmumi","Produkts/Pakalpojums 3",{"$nulls":3},{"$f":"IFERROR(IF(Pārdošanas_ieņēmumi_1[[#Totals],[Pašreizējais periods]]=0,\"-\",Pārdošanas_ieņēmumi_1[Pašreizējais periods]/Pārdošanas_ieņēmumi),\"-\")","v":"-"},{"$f":"IFERROR(IF(Pārdošanas_ieņēmumi_1[[#This Row],[Iepriekšējais periods]]=Pārdošanas_ieņēmumi_1[[#This Row],[Pašreizējais periods]],0,IF(Pārdošanas_ieņēmumi_1[[#This Row],[Pašreizējais periods]]>Pārdošanas_ieņēmumi_1[[#This Row],[Iepriekšējais periods]],ABS((Pārdošanas_ieņēmumi_1[[#This Row],[Pašreizējais periods]]/Pārdošanas_ieņēmumi_1[[#This Row],[Iepriekšējais periods]])-1),IF(AND(Pārdošanas_ieņēmumi_1[[#This Row],[Pašreizējais periods]]<Pārdošanas_ieņēmumi_1[[#This Row],[Iepriekšējais periods]],Pārdošanas_ieņēmumi_1[[#This Row],[Iepriekšējais periods]]<0),-((Pārdošanas_ieņēmumi_1[[#This Row],[Pašreizējais periods]]/Pārdošanas_ieņēmumi_1[[#This Row],[Iepriekšējais periods]])-1),(Pārdošanas_ieņēmumi_1[[#This Row],[Pašreizējais periods]]/Pārdošanas_ieņēmumi_1[[#This Row],[Iepriekšējais periods]])-1))),\"-\")","v":{"v":0,"d":"0.00%"}},{"$f":"IFERROR(IF(Pārdošanas_ieņēmumi_1[[#This Row],[Budžets]]=Pārdošanas_ieņēmumi_1[[#This Row],[Pašreizējais periods]],0,IF(Pārdošanas_ieņēmumi_1[[#This Row],[Pašreizējais periods]]>Pārdošanas_ieņēmumi_1[[#This Row],[Budžets]],ABS((Pārdošanas_ieņēmumi_1[[#This Row],[Pašreizējais periods]]/Pārdošanas_ieņēmumi_1[[#This Row],[Budžets]])-1),IF(AND(Pārdošanas_ieņēmumi_1[[#This Row],[Pašreizējais periods]]<Pārdošanas_ieņēmumi_1[[#This Row],[Budžets]],Pārdošanas_ieņēmumi_1[[#This Row],[Budžets]]<0),-((Pārdošanas_ieņēmumi_1[[#This Row],[Pašreizējais periods]]/Pārdošanas_ieņēmumi_1[[#This Row],[Budžets]])-1),(Pārdošanas_ieņēmumi_1[[#This Row],[Pašreizējais periods]]/Pārdošanas_ieņēmumi_1[[#This Row],[Budžets]])-1))),\"-\")","v":{"v":0,"d":"0.00%"}}]
[null,"Pārdošanas ieņēmumi","Produkts/Pakalpojums 4",{"$nulls":3},{"$f":"IFERROR(IF(Pārdošanas_ieņēmumi_1[[#Totals],[Pašreizējais periods]]=0,\"-\",Pārdošanas_ieņēmumi_1[Pašreizējais periods]/Pārdošanas_ieņēmumi),\"-\")","v":"-"},{"$f":"IFERROR(IF(Pārdošanas_ieņēmumi_1[[#This Row],[Iepriekšējais periods]]=Pārdošanas_ieņēmumi_1[[#This Row],[Pašreizējais periods]],0,IF(Pārdošanas_ieņēmumi_1[[#This Row],[Pašreizējais periods]]>Pārdošanas_ieņēmumi_1[[#This Row],[Iepriekšējais periods]],ABS((Pārdošanas_ieņēmumi_1[[#This Row],[Pašreizējais periods]]/Pārdošanas_ieņēmumi_1[[#This Row],[Iepriekšējais periods]])-1),IF(AND(Pārdošanas_ieņēmumi_1[[#This Row],[Pašreizējais periods]]<Pārdošanas_ieņēmumi_1[[#This Row],[Iepriekšējais periods]],Pārdošanas_ieņēmumi_1[[#This Row],[Iepriekšējais periods]]<0),-((Pārdošanas_ieņēmumi_1[[#This Row],[Pašreizējais periods]]/Pārdošanas_ieņēmumi_1[[#This Row],[Iepriekšējais periods]])-1),(Pārdošanas_ieņēmumi_1[[#This Row],[Pašreizējais periods]]/Pārdošanas_ieņēmumi_1[[#This Row],[Iepriekšējais periods]])-1))),\"-\")","v":{"v":0,"d":"0.00%"}},{"$f":"IFERROR(IF(Pārdošanas_ieņēmumi_1[[#This Row],[Budžets]]=Pārdošanas_ieņēmumi_1[[#This Row],[Pašreizējais periods]],0,IF(Pārdošanas_ieņēmumi_1[[#This Row],[Pašreizējais periods]]>Pārdošanas_ieņēmumi_1[[#This Row],[Budžets]],ABS((Pārdošanas_ieņēmumi_1[[#This Row],[Pašreizējais periods]]/Pārdošanas_ieņēmumi_1[[#This Row],[Budžets]])-1),IF(AND(Pārdošanas_ieņēmumi_1[[#This Row],[Pašreizējais periods]]<Pārdošanas_ieņēmumi_1[[#This Row],[Budžets]],Pārdošanas_ieņēmumi_1[[#This Row],[Budžets]]<0),-((Pārdošanas_ieņēmumi_1[[#This Row],[Pašreizējais periods]]/Pārdošanas_ieņēmumi_1[[#This Row],[Budžets]])-1),(Pārdošanas_ieņēmumi_1[[#This Row],[Pašreizējais periods]]/Pārdošanas_ieņēmumi_1[[#This Row],[Budžets]])-1))),\"-\")","v":{"v":0,"d":"0.00%"}}]
[null,"Pārdošanas izmaksas","Produkts/Pakalpojums 1",{"$nulls":3},{"$f":"IFERROR(IF(Pārdošanas_ieņēmumi_1[[#Totals],[Pašreizējais periods]]=0,\"-\",Pārdošanas_ieņēmumi_1[Pašreizējais periods]/Pārdošanas_ieņēmumi),\"-\")","v":"-"},{"$f":"IFERROR(IF(Pārdošanas_ieņēmumi_1[[#This Row],[Iepriekšējais periods]]=Pārdošanas_ieņēmumi_1[[#This Row],[Pašreizējais periods]],0,IF(Pārdošanas_ieņēmumi_1[[#This Row],[Pašreizējais periods]]>Pārdošanas_ieņēmumi_1[[#This Row],[Iepriekšējais periods]],ABS((Pārdošanas_ieņēmumi_1[[#This Row],[Pašreizējais periods]]/Pārdošanas_ieņēmumi_1[[#This Row],[Iepriekšējais periods]])-1),IF(AND(Pārdošanas_ieņēmumi_1[[#This Row],[Pašreizējais periods]]<Pārdošanas_ieņēmumi_1[[#This Row],[Iepriekšējais periods]],Pārdošanas_ieņēmumi_1[[#This Row],[Iepriekšējais periods]]<0),-((Pārdošanas_ieņēmumi_1[[#This Row],[Pašreizējais periods]]/Pārdošanas_ieņēmumi_1[[#This Row],[Iepriekšējais periods]])-1),(Pārdošanas_ieņēmumi_1[[#This Row],[Pašreizējais periods]]/Pārdošanas_ieņēmumi_1[[#This Row],[Iepriekšējais periods]])-1))),\"-\")","v":{"v":0,"d":"0.00%"}},{"$f":"IFERROR(IF(Pārdošanas_ieņēmumi_1[[#This Row],[Budžets]]=Pārdošanas_ieņēmumi_1[[#This Row],[Pašreizējais periods]],0,IF(Pārdošanas_ieņēmumi_1[[#This Row],[Pašreizējais periods]]>Pārdošanas_ieņēmumi_1[[#This Row],[Budžets]],ABS((Pārdošanas_ieņēmumi_1[[#This Row],[Pašreizējais periods]]/Pārdošanas_ieņēmumi_1[[#This Row],[Budžets]])-1),IF(AND(Pārdošanas_ieņēmumi_1[[#This Row],[Pašreizējais periods]]<Pārdošanas_ieņēmumi_1[[#This Row],[Budžets]],Pārdošanas_ieņēmumi_1[[#This Row],[Budžets]]<0),-((Pārdošanas_ieņēmumi_1[[#This Row],[Pašreizējais periods]]/Pārdošanas_ieņēmumi_1[[#This Row],[Budžets]])-1),(Pārdošanas_ieņēmumi_1[[#This Row],[Pašreizējais periods]]/Pārdošanas_ieņēmumi_1[[#This Row],[Budžets]])-1))),\"-\")","v":{"v":0,"d":"0.00%"}}]
[null,"Pārdošanas izmaksas","Produkts/Pakalpojums 2",{"$nulls":3},{"$f":"IFERROR(IF(Pārdošanas_ieņēmumi_1[[#Totals],[Pašreizējais periods]]=0,\"-\",Pārdošanas_ieņēmumi_1[Pašreizējais periods]/Pārdošanas_ieņēmumi),\"-\")","v":"-"},{"$f":"IFERROR(IF(Pārdošanas_ieņēmumi_1[[#This Row],[Iepriekšējais periods]]=Pārdošanas_ieņēmumi_1[[#This Row],[Pašreizējais periods]],0,IF(Pārdošanas_ieņēmumi_1[[#This Row],[Pašreizējais periods]]>Pārdošanas_ieņēmumi_1[[#This Row],[Iepriekšējais periods]],ABS((Pārdošanas_ieņēmumi_1[[#This Row],[Pašreizējais periods]]/Pārdošanas_ieņēmumi_1[[#This Row],[Iepriekšējais periods]])-1),IF(AND(Pārdošanas_ieņēmumi_1[[#This Row],[Pašreizējais periods]]<Pārdošanas_ieņēmumi_1[[#This Row],[Iepriekšējais periods]],Pārdošanas_ieņēmumi_1[[#This Row],[Iepriekšējais periods]]<0),-((Pārdošanas_ieņēmumi_1[[#This Row],[Pašreizējais periods]]/Pārdošanas_ieņēmumi_1[[#This Row],[Iepriekšējais periods]])-1),(Pārdošanas_ieņēmumi_1[[#This Row],[Pašreizējais periods]]/Pārdošanas_ieņēmumi_1[[#This Row],[Iepriekšējais periods]])-1))),\"-\")","v":{"v":0,"d":"0.00%"}},{"$f":"IFERROR(IF(Pārdošanas_ieņēmumi_1[[#This Row],[Budžets]]=Pārdošanas_ieņēmumi_1[[#This Row],[Pašreizējais periods]],0,IF(Pārdošanas_ieņēmumi_1[[#This Row],[Pašreizējais periods]]>Pārdošanas_ieņēmumi_1[[#This Row],[Budžets]],ABS((Pārdošanas_ieņēmumi_1[[#This Row],[Pašreizējais periods]]/Pārdošanas_ieņēmumi_1[[#This Row],[Budžets]])-1),IF(AND(Pārdošanas_ieņēmumi_1[[#This Row],[Pašreizējais periods]]<Pārdošanas_ieņēmumi_1[[#This Row],[Budžets]],Pārdošanas_ieņēmumi_1[[#This Row],[Budžets]]<0),-((Pārdošanas_ieņēmumi_1[[#This Row],[Pašreizējais periods]]/Pārdošanas_ieņēmumi_1[[#This Row],[Budžets]])-1),(Pārdošanas_ieņēmumi_1[[#This Row],[Pašreizējais periods]]/Pārdošanas_ieņēmumi_1[[#This Row],[Budžets]])-1))),\"-\")","v":{"v":0,"d":"0.00%"}}]
[null,"Pārdošanas izmaksas","Produkts/Pakalpojums 3",{"$nulls":3},{"$f":"IFERROR(IF(Pārdošanas_ieņēmumi_1[[#Totals],[Pašreizējais periods]]=0,\"-\",Pārdošanas_ieņēmumi_1[Pašreizējais periods]/Pārdošanas_ieņēmumi),\"-\")","v":"-"},{"$f":"IFERROR(IF(Pārdošanas_ieņēmumi_1[[#This Row],[Iepriekšējais periods]]=Pārdošanas_ieņēmumi_1[[#This Row],[Pašreizējais periods]],0,IF(Pārdošanas_ieņēmumi_1[[#This Row],[Pašreizējais periods]]>Pārdošanas_ieņēmumi_1[[#This Row],[Iepriekšējais periods]],ABS((Pārdošanas_ieņēmumi_1[[#This Row],[Pašreizējais periods]]/Pārdošanas_ieņēmumi_1[[#This Row],[Iepriekšējais periods]])-1),IF(AND(Pārdošanas_ieņēmumi_1[[#This Row],[Pašreizējais periods]]<Pārdošanas_ieņēmumi_1[[#This Row],[Iepriekšējais periods]],Pārdošanas_ieņēmumi_1[[#This Row],[Iepriekšējais periods]]<0),-((Pārdošanas_ieņēmumi_1[[#This Row],[Pašreizējais periods]]/Pārdošanas_ieņēmumi_1[[#This Row],[Iepriekšējais periods]])-1),(Pārdošanas_ieņēmumi_1[[#This Row],[Pašreizējais periods]]/Pārdošanas_ieņēmumi_1[[#This Row],[Iepriekšējais periods]])-1))),\"-\")","v":{"v":0,"d":"0.00%"}},{"$f":"IFERROR(IF(Pārdošanas_ieņēmumi_1[[#This Row],[Budžets]]=Pārdošanas_ieņēmumi_1[[#This Row],[Pašreizējais periods]],0,IF(Pārdošanas_ieņēmumi_1[[#This Row],[Pašreizējais periods]]>Pārdošanas_ieņēmumi_1[[#This Row],[Budžets]],ABS((Pārdošanas_ieņēmumi_1[[#This Row],[Pašreizējais periods]]/Pārdošanas_ieņēmumi_1[[#This Row],[Budžets]])-1),IF(AND(Pārdošanas_ieņēmumi_1[[#This Row],[Pašreizējais periods]]<Pārdošanas_ieņēmumi_1[[#This Row],[Budžets]],Pārdošanas_ieņēmumi_1[[#This Row],[Budžets]]<0),-((Pārdošanas_ieņēmumi_1[[#This Row],[Pašreizējais periods]]/Pārdošanas_ieņēmumi_1[[#This Row],[Budžets]])-1),(Pārdošanas_ieņēmumi_1[[#This Row],[Pašreizējais periods]]/Pārdošanas_ieņēmumi_1[[#This Row],[Budžets]])-1))),\"-\")","v":{"v":0,"d":"0.00%"}}]
[null,"Pārdošanas izmaksas","Produkts/Pakalpojums 4",{"$nulls":3},{"$f":"IFERROR(IF(Pārdošanas_ieņēmumi_1[[#Totals],[Pašreizējais periods]]=0,\"-\",Pārdošanas_ieņēmumi_1[Pašreizējais periods]/Pārdošanas_ieņēmumi),\"-\")","v":"-"},{"$f":"IFERROR(IF(Pārdošanas_ieņēmumi_1[[#This Row],[Iepriekšējais periods]]=Pārdošanas_ieņēmumi_1[[#This Row],[Pašreizējais periods]],0,IF(Pārdošanas_ieņēmumi_1[[#This Row],[Pašreizējais periods]]>Pārdošanas_ieņēmumi_1[[#This Row],[Iepriekšējais periods]],ABS((Pārdošanas_ieņēmumi_1[[#This Row],[Pašreizējais periods]]/Pārdošanas_ieņēmumi_1[[#This Row],[Iepriekšējais periods]])-1),IF(AND(Pārdošanas_ieņēmumi_1[[#This Row],[Pašreizējais periods]]<Pārdošanas_ieņēmumi_1[[#This Row],[Iepriekšējais periods]],Pārdošanas_ieņēmumi_1[[#This Row],[Iepriekšējais periods]]<0),-((Pārdošanas_ieņēmumi_1[[#This Row],[Pašreizējais periods]]/Pārdošanas_ieņēmumi_1[[#This Row],[Iepriekšējais periods]])-1),(Pārdošanas_ieņēmumi_1[[#This Row],[Pašreizējais periods]]/Pārdošanas_ieņēmumi_1[[#This Row],[Iepriekšējais periods]])-1))),\"-\")","v":{"v":0,"d":"0.00%"}},{"$f":"IFERROR(IF(Pārdošanas_ieņēmumi_1[[#This Row],[Budžets]]=Pārdošanas_ieņēmumi_1[[#This Row],[Pašreizējais periods]],0,IF(Pārdošanas_ieņēmumi_1[[#This Row],[Pašreizējais periods]]>Pārdošanas_ieņēmumi_1[[#This Row],[Budžets]],ABS((Pārdošanas_ieņēmumi_1[[#This Row],[Pašreizējais periods]]/Pārdošanas_ieņēmumi_1[[#This Row],[Budžets]])-1),IF(AND(Pārdošanas_ieņēmumi_1[[#This Row],[Pašreizējais periods]]<Pārdošanas_ieņēmumi_1[[#This Row],[Budžets]],Pārdošanas_ieņēmumi_1[[#This Row],[Budžets]]<0),-((Pārdošanas_ieņēmumi_1[[#This Row],[Pašreizējais periods]]/Pārdošanas_ieņēmumi_1[[#This Row],[Budžets]])-1),(Pārdošanas_ieņēmumi_1[[#This Row],[Pašreizējais periods]]/Pārdošanas_ieņēmumi_1[[#This Row],[Budžets]])-1))),\"-\")","v":{"v":0,"d":"0.00%"}}]
[null,"Pārdošanas ieņēmumu kopsumma",null,{"$f":"SUBTOTAL(109,Pārdošanas_ieņēmumi_1[Iepriekšējais periods])","v":0},{"$f":"SUBTOTAL(109,Pārdošanas_ieņēmumi_1[Budžets])","v":0},{"$f":"SUBTOTAL(109,Pārdošanas_ieņēmumi_1[Pašreizējais periods])","v":0},{"$f":"SUBTOTAL(109,Pārdošanas_ieņēmumi_1[Pašreizējais periods kā % no pārdošanas])","v":{"v":0,"d":"0.00%"}},{"$f":"SUBTOTAL(109,Pārdošanas_ieņēmumi_1[% izmaiņas no iepriekšējā perioda])","v":{"v":0,"d":"0.00%"}},{"$f":"SUBTOTAL(109,Pārdošanas_ieņēmumi_1[% izmaiņas no budžeta])","v":{"v":0,"d":"0.00%"}}]

{"sheet":"Ienākumi","index":2,"n_rows":7,"n_cols":9,"rows_kept":7,"merged":[[0,7,2,8]]}
[null,{"$f":"Darbgrāmatas_nosaukums","v":"Peļņas vai zaudējumu aprēķins"}]
[null,{"$f":"Uzņēmuma_nosaukums","v":"Uzņēmuma nosaukums"},"Norādīts ar 000"]
[null,"Ienākumi",{"$f":"IFERROR(Ienākumi[[#Totals],[Pašreizējais periods]],\"-\")","v":0}]
[null,"Ienākumu veids","Apraksts","Iepriekšējais periods","Budžets","Pašreizējais periods","Pašreizējais periods kā % no pārdošanas","% izmaiņas no iepriekšējā perioda","% izmaiņas no budžeta"]
[null,"Ienākumi","Citi ienākumi",{"$nulls":3},{"$f":"IFERROR(IF(Pārdošanas_ieņēmumi=0,\"-\",Ienākumi[Pašreizējais periods]/Pārdošanas_ieņēmumi),\"-\")","v":"-"},{"$f":"IFERROR(IF(Ienākumi[[#This Row],[Iepriekšējais periods]]=Ienākumi[[#This Row],[Pašreizējais periods]],0,IF(Ienākumi[[#This Row],[Pašreizējais periods]]>Ienākumi[[#This Row],[Iepriekšējais periods]],ABS((Ienākumi[[#This Row],[Pašreizējais periods]]/Ienākumi[[#This Row],[Iepriekšējais periods]])-1),IF(AND(Ienākumi[[#This Row],[Pašreizējais periods]]<Ienākumi[[#This Row],[Iepriekšējais periods]],Ienākumi[[#This Row],[Iepriekšējais periods]]<0),-((Ienākumi[[#This Row],[Pašreizējais periods]]/Ienākumi[[#This Row],[Iepriekšējais periods]])-1),(Ienākumi[[#This Row],[Pašreizējais periods]]/Ienākumi[[#This Row],[Iepriekšējais periods]])-1))),\"-\")","v":{"v":0,"d":"0.00%"}},{"$f":"IFERROR(IF(Ienākumi[[#This Row],[Budžets]]=Ienākumi[[#This Row],[Pašreizējais periods]],0,IF(Ienākumi[[#This Row],[Pašreizējais periods]]>Ienākumi[[#This Row],[Budžets]],ABS((Ienākumi[[#This Row],[Pašreizējais periods]]/Ienākumi[[#This Row],[Budžets]])-1),IF(AND(Ienākumi[[#This Row],[Pašreizējais periods]]<Ienākumi[[#This Row],[Budžets]],Ienākumi[[#This Row],[Budžets]]<0),-((Ienākumi[[#This Row],[Pašreizējais periods]]/Ienākumi[[#This Row],[Budžets]])-1),(Ienākumi[[#This Row],[Pašreizējais periods]]/Ienākumi[[#This Row],[Budžets]])-1))),\"-\")","v":{"v":0,"d":"0.00%"}}]
[{"$nulls":6},{"$f":"IFERROR(IF(Pārdošanas_ieņēmumi=0,\"-\",Ienākumi[Pašreizējais periods]/Pārdošanas_ieņēmumi),\"-\")","v":"-"},{"$f":"IFERROR(IF(Ienākumi[[#This Row],[Iepriekšējais periods]]=Ienākumi[[#This Row],[Pašreizējais periods]],0,IF(Ienākumi[[#This Row],[Pašreizējais periods]]>Ienākumi[[#This Row],[Iepriekšējais periods]],ABS((Ienākumi[[#This Row],[Pašreizējais periods]]/Ienākumi[[#This Row],[Iepriekšējais periods]])-1),IF(AND(Ienākumi[[#This Row],[Pašreizējais periods]]<Ienākumi[[#This Row],[Iepriekšējais periods]],Ienākumi[[#This Row],[Iepriekšējais periods]]<0),-((Ienākumi[[#This Row],[Pašreizējais periods]]/Ienākumi[[#This Row],[Iepriekšējais periods]])-1),(Ienākumi[[#This Row],[Pašreizējais periods]]/Ienākumi[[#This Row],[Iepriekšējais periods]])-1))),\"-\")","v":{"v":0,"d":"0.00%"}},{"$f":"IFERROR(IF(Ienākumi[[#This Row],[Budžets]]=Ienākumi[[#This Row],[Pašreizējais periods]],0,IF(Ienākumi[[#This Row],[Pašreizējais periods]]>Ienākumi[[#This Row],[Budžets]],ABS((Ienākumi[[#This Row],[Pašreizējais periods]]/Ienākumi[[#This Row],[Budžets]])-1),IF(AND(Ienākumi[[#This Row],[Pašreizējais periods]]<Ienākumi[[#This Row],[Budžets]],Ienākumi[[#This Row],[Budžets]]<0),-((Ienākumi[[#This Row],[Pašreizējais periods]]/Ienākumi[[#This Row],[Budžets]])-1),(Ienākumi[[#This Row],[Pašreizējais periods]]/Ienākumi[[#This Row],[Budžets]])-1))),\"-\")","v":{"v":0,"d":"0.00%"}}]
[null,"Pārdošanas ienākumu kopsumma",null,{"$f":"SUBTOTAL(109,Ienākumi[Iepriekšējais periods])","v":0},{"$f":"SUBTOTAL(109,Ienākumi[Budžets])","v":0},{"$f":"SUBTOTAL(109,Ienākumi[Pašreizējais periods])","v":0},{"$f":"SUBTOTAL(109,Ienākumi[Pašreizējais periods kā % no pārdošanas])","v":{"v":0,"d":"0.00%"}},{"$f":"SUBTOTAL(109,Ienākumi[% izmaiņas no iepriekšējā perioda])","v":{"v":0,"d":"0.00%"}},{"$f":"SUBTOTAL(109,Ienākumi[% izmaiņas no budžeta])","v":{"v":0,"d":"0.00%"}}]

{"sheet":"Izdevumi","index":3,"n_rows":25,"n_cols":9,"rows_kept":25,"merged":[[0,7,2,8]]}
[null,{"$f":"Darbgrāmatas_nosaukums","v":"Peļņas vai zaudējumu aprēķins"}]
[null,{"$f":"Uzņēmuma_nosaukums","v":"Uzņēmuma nosaukums"},"Norādīts ar 000"]
[null,"Pamatdarbības izdevumi",{"$f":"IFERROR(Pamatdarbības_izdevumi[[#Totals],[Pašreizējais periods]],\"-\")","v":0}]
[null,"Izdevumu veids","Apraksts","Iepriekšējais periods","Budžets","Pašreizējais periods","Pašreizējais periods kā % no pārdošanas","% izmaiņas no iepriekšējā perioda","% izmaiņas no budžeta"]
[null,"Pārdošana un mārketings","Reklāma",{"$nulls":3},{"$f":"IFERROR(IF(Pārdošanas_ieņēmumi=0,\"-\",Pamatdarbības_izdevumi[Pašreizējais periods]/Pārdošanas_ieņēmumi),\"-\")","v":"-"},{"$f":"IFERROR(IF(Pamatdarbības_izdevumi[[#This Row],[Iepriekšējais periods]]=Pamatdarbības_izdevumi[[#This Row],[Pašreizējais periods]],0,IF(Pamatdarbības_izdevumi[[#This Row],[Pašreizējais periods]]>Pamatdarbības_izdevumi[[#This Row],[Iepriekšējais periods]],ABS((Pamatdarbības_izdevumi[[#This Row],[Pašreizējais periods]]/Pamatdarbības_izdevumi[[#This Row],[Iepriekšējais periods]])-1),IF(AND(Pamatdarbības_izdevumi[[#This Row],[Pašreizējais periods]]<Pamatdarbības_izdevumi[[#This Row],[Iepriekšējais periods]],Pamatdarbības_izdevumi[[#This Row],[Iepriekšējais periods]]<0),-((Pamatdarbības_izdevumi[[#This Row],[Pašreizējais periods]]/Pamatdarbības_izdevumi[[#This Row],[Iepriekšējais periods]])-1),(Pamatdarbības_izdevumi[[#This Row],[Pašreizējais periods]]/Pamatdarbības_izdevumi[[#This Row],[Iepriekšējais periods]])-1))),\"-\")","v":{"v":0,"d":"0.00%"}},{"$f":"IFERROR(IF(Pamatdarbības_izdevumi[[#This Row],[Budžets]]=Pamatdarbības_izdevumi[[#This Row],[Pašreizējais periods]],0,IF(Pamatdarbības_izdevumi[[#This Row],[Pašreizējais periods]]>Pamatdarbības_izdevumi[[#This Row],[Budžets]],ABS((Pamatdarbības_izdevumi[[#This Row],[Pašreizējais periods]]/Pamatdarbības_izdevumi[[#This Row],[Budžets]])-1),IF(AND(Pamatdarbības_izdevumi[[#This Row],[Pašreizējais periods]]<Pamatdarbības_izdevumi[[#This Row],[Budžets]],Pamatdarbības_izdevumi[[#This Row],[Budžets]]<0),-((Pamatdarbības_izdevumi[[#This Row],[Pašreizējais periods]]/Pamatdarbības_izdevumi[[#This Row],[Budžets]])-1),(Pamatdarbības_izdevumi[[#This Row],[Pašreizējais periods]]/Pamatdarbības_izdevumi[[#This Row],[Budžets]])-1))),\"-\")","v":{"v":0,"d":"0.00%"}}]
[null,"Pārdošana un mārketings","Tiešais mārketings",{"$nulls":3},{"$f":"IFERROR(IF(Pārdošanas_ieņēmumi=0,\"-\",Pamatdarbības_izdevumi[Pašreizējais periods]/Pārdošanas_ieņēmumi),\"-\")","v":"-"},{"$f":"IFERROR(IF(Pamatdarbības_izdevumi[[#This Row],[Iepriekšējais periods]]=Pamatdarbības_izdevumi[[#This Row],[Pašreizējais periods]],0,IF(Pamatdarbības_izdevumi[[#This Row],[Pašreizējais periods]]>Pamatdarbības_izdevumi[[#This Row],[Iepriekšējais periods]],ABS((Pamatdarbības_izdevumi[[#This Row],[Pašreizējais periods]]/Pamatdarbības_izdevumi[[#This Row],[Iepriekšējais periods]])-1),IF(AND(Pamatdarbības_izdevumi[[#This Row],[Pašreizējais periods]]<Pamatdarbības_izdevumi[[#This Row],[Iepriekšējais periods]],Pamatdarbības_izdevumi[[#This Row],[Iepriekšējais periods]]<0),-((Pamatdarbības_izdevumi[[#This Row],[Pašreizējais periods]]/Pamatdarbības_izdevumi[[#This Row],[Iepriekšējais periods]])-1),(Pamatdarbības_izdevumi[[#This Row],[Pašreizējais periods]]/Pamatdarbības_izdevumi[[#This Row],[Iepriekšējais periods]])-1))),\"-\")","v":{"v":0,"d":"0.00%"}},{"$f":"IFERROR(IF(Pamatdarbības_izdevumi[[#This Row],[Budžets]]=Pamatdarbības_izdevumi[[#This Row],[Pašreizējais periods]],0,IF(Pamatdarbības_izdevumi[[#This Row],[Pašreizējais periods]]>Pamatdarbības_izdevumi[[#This Row],[Budžets]],ABS((Pamatdarbības_izdevumi[[#This Row],[Pašreizējais periods]]/Pamatdarbības_izdevumi[[#This Row],[Budžets]])-1),IF(AND(Pamatdarbības_izdevumi[[#This Row],[Pašreizējais periods]]<Pamatdarbības_izdevumi[[#This Row],[Budžets]],Pamatdarbības_izdevumi[[#This Row],[Budžets]]<0),-((Pamatdarbības_izdevumi[[#This Row],[Pašreizējais periods]]/Pamatdarbības_izdevumi[[#This Row],[Budžets]])-1),(Pamatdarbības_izdevumi[[#This Row],[Pašreizējais periods]]/Pamatdarbības_izdevumi[[#This Row],[Budžets]])-1))),\"-\")","v":{"v":0,"d":"0.00%"}}]
[null,"Pārdošana un mārketings","Citi izdevumi (norādīt)",{"$nulls":3},{"$f":"IFERROR(IF(Pārdošanas_ieņēmumi=0,\"-\",Pamatdarbības_izdevumi[Pašreizējais periods]/Pārdošanas_ieņēmumi),\"-\")","v":"-"},{"$f":"IFERROR(IF(Pamatdarbības_izdevumi[[#This Row],[Iepriekšējais periods]]=Pamatdarbības_izdevumi[[#This Row],[Pašreizējais periods]],0,IF(Pamatdarbības_izdevumi[[#This Row],[Pašreizējais periods]]>Pamatdarbības_izdevumi[[#This Row],[Iepriekšējais periods]],ABS((Pamatdarbības_izdevumi[[#This Row],[Pašreizējais periods]]/Pamatdarbības_izdevumi[[#This Row],[Iepriekšējais periods]])-1),IF(AND(Pamatdarbības_izdevumi[[#This Row],[Pašreizējais periods]]<Pamatdarbības_izdevumi[[#This Row],[Iepriekšējais periods]],Pamatdarbības_izdevumi[[#This Row],[Iepriekšējais periods]]<0),-((Pamatdarbības_izdevumi[[#This Row],[Pašreizējais periods]]/Pamatdarbības_izdevumi[[#This Row],[Iepriekšējais periods]])-1),(Pamatdarbības_izdevumi[[#This Row],[Pašreizējais periods]]/Pamatdarbības_izdevumi[[#This Row],[Iepriekšējais periods]])-1))),\"-\")","v":{"v":0,"d":"0.00%"}},{"$f":"IFERROR(IF(Pamatdarbības_izdevumi[[#This Row],[Budžets]]=Pamatdarbības_izdevumi[[#This Row],[Pašreizējais periods]],0,IF(Pamatdarbības_izdevumi[[#This Row],[Pašreizējais periods]]>Pamatdarbības_izdevumi[[#This Row],[Budžets]],ABS((Pamatdarbības_izdevumi[[#This Row],[Pašreizējais periods]]/Pamatdarbības_izdevumi[[#This Row],[Budžets]])-1),IF(AND(Pamatdarbības_izdevumi[[#This Row],[Pašreizējais periods]]<Pamatdarbības_izdevumi[[#This Row],[Budžets]],Pamatdarbības_izdevumi[[#This Row],[Budžets]]<0),-((Pamatdarbības_izdevumi[[#This Row],[Pašreizējais periods]]/Pamatdarbības_izdevumi[[#This Row],[Budžets]])-1),(Pamatdarbības_izdevumi[[#This Row],[Pašreizējais periods]]/Pamatdarbības_izdevumi[[#This Row],[Budžets]])-1))),\"-\")","v":{"v":0,"d":"0.00%"}}]
[null,"Pārdošana un mārketings","Citi izdevumi (norādīt)",{"$nulls":3},{"$f":"IFERROR(IF(Pārdošanas_ieņēmumi=0,\"-\",Pamatdarbības_izdevumi[Pašreizējais periods]/Pārdošanas_ieņēmumi),\"-\")","v":"-"},{"$f":"IFERROR(IF(Pamatdarbības_izdevumi[[#This Row],[Iepriekšējais periods]]=Pamatdarbības_izdevumi[[#This Row],[Pašreizējais periods]],0,IF(Pamatdarbības_izdevumi[[#This Row],[Pašreizējais periods]]>Pamatdarbības_izdevumi[[#This Row],[Iepriekšējais periods]],ABS((Pamatdarbības_izdevumi[[#This Row],[Pašreizējais periods]]/Pamatdarbības_izdevumi[[#This Row],[Iepriekšējais periods]])-1),IF(AND(Pamatdarbības_izdevumi[[#This Row],[Pašreizējais periods]]<Pamatdarbības_izdevumi[[#This Row],[Iepriekšējais periods]],Pamatdarbības_izdevumi[[#This Row],[Iepriekšējais periods]]<0),-((Pamatdarbības_izdevumi[[#This Row],[Pašreizējais periods]]/Pamatdarbības_izdevumi[[#This Row],[Iepriekšējais periods]])-1),(Pamatdarbības_izdevumi[[#This Row],[Pašreizējais periods]]/Pamatdarbības_izdevumi[[#This Row],[Iepriekšējais periods]])-1))),\"-\")","v":{"v":0,"d":"0.00%"}},{"$f":"IFERROR(IF(Pamatdarbības_izdevumi[[#This Row],[Budžets]]=Pamatdarbības_izdevumi[[#This Row],[Pašreizējais periods]],0,IF(Pamatdarbības_izdevumi[[#This Row],[Pašreizējais periods]]>Pamatdarbības_izdevumi[[#This Row],[Budžets]],ABS((Pamatdarbības_izdevumi[[#This Row],[Pašreizējais periods]]/Pamatdarbības_izdevumi[[#This Row],[Budžets]])-1),IF(AND(Pamatdarbības_izdevumi[[#This Row],[Pašreizējais periods]]<Pamatdarbības_izdevumi[[#This Row],[Budžets]],Pamatdarbības_izdevumi[[#This Row],[Budžets]]<0),-((Pamatdarbības_izdevumi[[#This Row],[Pašreizējais periods]]/Pamatdarbības_izdevumi[[#This Row],[Budžets]])-1),(Pamatdarbības_izdevumi[[#This Row],[Pašreizējais periods]]/Pamatdarbības_izdevumi[[#This Row],[Budžets]])-1))),\"-\")","v":{"v":0,"d":"0.00%"}}]
[null,"Izpēte un attīstība","Tehnoloģiju licences",{"$nulls":3},{"$f":"IFERROR(IF(Pārdošanas_ieņēmumi=0,\"-\",Pamatdarbības_izdevumi[Pašreizējais periods]/Pārdošanas_ieņēmumi),\"-\")","v":"-"},{"$f":"IFERROR(IF(Pamatdarbības_izdevumi[[#This Row],[Iepriekšējais periods]]=Pamatdarbības_izdevumi[[#This Row],[Pašreizējais periods]],0,IF(Pamatdarbības_izdevumi[[#This Row],[Pašreizējais periods]]>Pamatdarbības_izdevumi[[#This Row],[Iepriekšējais periods]],ABS((Pamatdarbības_izdevumi[[#This Row],[Pašreizējais periods]]/Pamatdarbības_izdevumi[[#This Row],[Iepriekšējais periods]])-1),IF(AND(Pamatdarbības_izdevumi[[#This Row],[Pašreizējais periods]]<Pamatdarbības_izdevumi[[#This Row],[Iepriekšējais periods]],Pamatdarbības_izdevumi[[#This Row],[Iepriekšējais periods]]<0),-((Pamatdarbības_izdevumi[[#This Row],[Pašreizējais periods]]/Pamatdarbības_izdevumi[[#This Row],[Iepriekšējais periods]])-1),(Pamatdarbības_izdevumi[[#This Row],[Pašreizējais periods]]/Pamatdarbības_izdevumi[[#This Row],[Iepriekšējais periods]])-1))),\"-\")","v":{"v":0,"d":"0.00%"}},{"$f":"IFERROR(IF(Pamatdarbības_izdevumi[[#This Row],[Budžets]]=Pamatdarbības_izdevumi[[#This Row],[Pašreizējais periods]],0,IF(Pamatdarbības_izdevumi[[#This Row],[Pašreizējais periods]]>Pamatdarbības_izdevumi[[#This Row],[Budžets]],ABS((Pamatdarbības_izdevumi[[#This Row],[Pašreizējais periods]]/Pamatdarbības_izdevumi[[#This Row],[Budžets]])-1),IF(AND(Pamatdarbības_izdevumi[[#This Row],[Pašreizējais periods]]<Pamatdarbības_izdevumi[[#This Row],[Budžets]],Pamatdarbības_izdevumi[[#This Row],[Budžets]]<0),-((Pamatdarbības_izdevumi[[#This Row],[Pašreizējais periods]]/Pamatdarbības_izdevumi[[#This Row],[Budžets]])-1),(Pamatdarbības_izdevumi[[#This Row],[Pašreizējais periods]]/Pamatdarbības_izdevumi[[#This Row],[Budžets]])-1))),\"-\")","v":{"v":0,"d":"0.00%"}}]
[null,"Izpēte un attīstība","Patenti ",{"$nulls":3},{"$f":"IFERROR(IF(Pārdošanas_ieņēmumi=0,\"-\",Pamatdarbības_izdevumi[Pašreizējais periods]/Pārdošanas_ieņēmumi),\"-\")","v":"-"},{"$f":"IFERROR(IF(Pamatdarbības_izdevumi[[#This Row],[Iepriekšējais periods]]=Pamatdarbības_izdevumi[[#This Row],[Pašreizējais periods]],0,IF(Pamatdarbības_izdevumi[[#This Row],[Pašreizējais periods]]>Pamatdarbības_izdevumi[[#This Row],[Iepriekšējais periods]],ABS((Pamatdarbības_izdevumi[[#This Row],[Pašreizējais periods]]/Pamatdarbības_izdevumi[[#This Row],[Iepriekšējais periods]])-1),IF(AND(Pamatdarbības_izdevumi[[#This Row],[Pašreizējais periods]]<Pamatdarbības_izdevumi[[#This Row],[Iepriekšējais periods]],Pamatdarbības_izdevumi[[#This Row],[Iepriekšējais periods]]<0),-((Pamatdarbības_izdevumi[[#This Row],[Pašreizējais periods]]/Pamatdarbības_izdevumi[[#This Row],[Iepriekšējais periods]])-1),(Pamatdarbības_izdevumi[[#This Row],[Pašreizējais periods]]/Pamatdarbības_izdevumi[[#This Row],[Iepriekšējais periods]])-1))),\"-\")","v":{"v":0,"d":"0.00%"}},{"$f":"IFERROR(IF(Pamatdarbības_izdevumi[[#This Row],[Budžets]]=Pamatdarbības_izdevumi[[#This Row],[Pašreizējais periods]],0,IF(Pamatdarbības_izdevumi[[#This Row],[Pašreizējais periods]]>Pamatdarbības_izdevumi[[#This Row],[Budžets]],ABS((Pamatdarbības_izdevumi[[#This Row],[Pašreizējais periods]]/Pamatdarbības_izdevumi[[#This Row],[Budžets]])-1),IF(AND(Pamatdarbības_izdevumi[[#This Row],[Pašreizējais periods]]<Pamatdarbības_izdevumi[[#This Row],[Budžets]],Pamatdarbības_izdevumi[[#This Row],[Budžets]]<0),-((Pamatdarbības_izdevumi[[#This Row],[Pašreizējais periods]]/Pamatdarbības_izdevumi[[#This Row],[Budžets]])-1),(Pamatdarbības_izdevumi[[#This Row],[Pašreizējais periods]]/Pamatdarbības_izdevumi[[#This Row],[Budžets]])-1))),\"-\")","v":{"v":0,"d":"0.00%"}}]
[null,"Izpēte un attīstība","Citi izdevumi (norādīt)",{"$nulls":3},{"$f":"IFERROR(IF(Pārdošanas_ieņēmumi=0,\"-\",Pamatdarbības_izdevumi[Pašreizējais periods]/Pārdošanas_ieņēmumi),\"-\")","v":"-"},{"$f":"IFERROR(IF(Pamatdarbības_izdevumi[[#This Row],[Iepriekšējais periods]]=Pamatdarbības_izdevumi[[#This Row],[Pašreizējais periods]],0,IF(Pamatdarbības_izdevumi[[#This Row],[Pašreizējais periods]]>Pamatdarbības_izdevumi[[#This Row],[Iepriekšējais periods]],ABS((Pamatdarbības_izdevumi[[#This Row],[Pašreizējais periods]]/Pamatdarbības_izdevumi[[#This Row],[Iepriekšējais periods]])-1),IF(AND(Pamatdarbības_izdevumi[[#This Row],[Pašreizējais periods]]<Pamatdarbības_izdevumi[[#This Row],[Iepriekšējais periods]],Pamatdarbības_izdevumi[[#This Row],[Iepriekšējais periods]]<0),-((Pamatdarbības_izdevumi[[#This Row],[Pašreizējais periods]]/Pamatdarbības_izdevumi[[#This Row],[Iepriekšējais periods]])-1),(Pamatdarbības_izdevumi[[#This Row],[Pašreizējais periods]]/Pamatdarbības_izdevumi[[#This Row],[Iepriekšējais periods]])-1))),\"-\")","v":{"v":0,"d":"0.00%"}},{"$f":"IFERROR(IF(Pamatdarbības_izdevumi[[#This Row],[Budžets]]=Pamatdarbības_izdevumi[[#This Row],[Pašreizējais periods]],0,IF(Pamatdarbības_izdevumi[[#This Row],[Pašreizējais periods]]>Pamatdarbības_izdevumi[[#This Row],[Budžets]],ABS((Pamatdarbības_izdevumi[[#This Row],[Pašreizējais periods]]/Pamatdarbības_izdevumi[[#This Row],[Budžets]])-1),IF(AND(Pamatdarbības_izdevumi[[#This Row],[Pašreizējais periods]]<Pamatdarbības_izdevumi[[#This Row],[Budžets]],Pamatdarbības_izdevumi[[#This Row],[Budžets]]<0),-((Pamatdarbības_izdevumi[[#This Row],[Pašreizējais periods]]/Pamatdarbības_izdevumi[[#This Row],[Budžets]])-1),(Pamatdarbības_izdevumi[[#This Row],[Pašreizējais periods]]/Pamatdarbības_izdevumi[[#This Row],[Budžets]])-1))),\"-\")","v":{"v":0,"d":"0.00%"}}]
[null,"Izpēte un attīstība","Citi izdevumi (norādīt)",{"$nulls":3},{"$f":"IFERROR(IF(Pārdošanas_ieņēmumi=0,\"-\",Pamatdarbības_izdevumi[Pašreizējais periods]/Pārdošanas_ieņēmumi),\"-\")","v":"-"},{"$f":"IFERROR(IF(Pamatdarbības_izdevumi[[#This Row],[Iepriekšējais periods]]=Pamatdarbības_izdevumi[[#This Row],[Pašreizējais periods]],0,IF(Pamatdarbības_izdevumi[[#This Row],[Pašreizējais periods]]>Pamatdarbības_izdevumi[[#This Row],[Iepriekšējais periods]],ABS((Pamatdarbības_izdevumi[[#This Row],[Pašreizējais periods]]/Pamatdarbības_izdevumi[[#This Row],[Iepriekšējais periods]])-1),IF(AND(Pamatdarbības_izdevumi[[#This Row],[Pašreizējais periods]]<Pamatdarbības_izdevumi[[#This Row],[Iepriekšējais periods]],Pamatdarbības_izdevumi[[#This Row],[Iepriekšējais periods]]<0),-((Pamatdarbības_izdevumi[[#This Row],[Pašreizējais periods]]/Pamatdarbības_izdevumi[[#This Row],[Iepriekšējais periods]])-1),(Pamatdarbības_izdevumi[[#This Row],[Pašreizējais periods]]/Pamatdarbības_izdevumi[[#This Row],[Iepriekšējais periods]])-1))),\"-\")","v":{"v":0,"d":"0.00%"}},{"$f":"IFERROR(IF(Pamatdarbības_izdevumi[[#This Row],[Budžets]]=Pamatdarbības_izdevumi[[#This Row],[Pašreizējais periods]],0,IF(Pamatdarbības_izdevumi[[#This Row],[Pašreizējais periods]]>Pamatdarbības_izdevumi[[#This Row],[Budžets]],ABS((Pamatdarbības_izdevumi[[#This Row],[Pašreizējais periods]]/Pamatdarbības_izdevumi[[#This Row],[Budžets]])-1),IF(AND(Pamatdarbības_izdevumi[[#This Row],[Pašreizējais periods]]<Pamatdarbības_izdevumi[[#This Row],[Budžets]],Pamatdarbības_izdevumi[[#This Row],[Budžets]]<0),-((Pamatdarbības_izdevumi[[#This Row],[Pašreizējais periods]]/Pamatdarbības_izdevumi[[#This Row],[Budžets]])-1),(Pamatdarbības_izdevumi[[#This Row],[Pašreizējais periods]]/Pamatdarbības_izdevumi[[#This Row],[Budžets]])-1))),\"-\")","v":{"v":0,"d":"0.00%"}}]
[null,"Vispārīgie un administratīvie","Algas",{"$nulls":3},{"$f":"IFERROR(IF(Pārdošanas_ieņēmumi=0,\"-\",Pamatdarbības_izdevumi[Pašreizējais periods]/Pārdošanas_ieņēmumi),\"-\")","v":"-"},{"$f":"IFERROR(IF(Pamatdarbības_izdevumi[[#This Row],[Iepriekšējais periods]]=Pamatdarbības_izdevumi[[#This Row],[Pašreizējais periods]],0,IF(Pamatdarbības_izdevumi[[#This Row],[Pašreizējais periods]]>Pamatdarbības_izdevumi[[#This Row],[Iepriekšējais periods]],ABS((Pamatdarbības_izdevumi[[#This Row],[Pašreizējais periods]]/Pamatdarbības_izdevumi[[#This Row],[Iepriekšējais periods]])-1),IF(AND(Pamatdarbības_izdevumi[[#This Row],[Pašreizējais periods]]<Pamatdarbības_izdevumi[[#This Row],[Iepriekšējais periods]],Pamatdarbības_izdevumi[[#This Row],[Iepriekšējais periods]]<0),-((Pamatdarbības_izdevumi[[#This Row],[Pašreizējais periods]]/Pamatdarbības_izdevumi[[#This Row],[Iepriekšējais periods]])-1),(Pamatdarbības_izdevumi[[#This Row],[Pašreizējais periods]]/Pamatdarbības_izdevumi[[#This Row],[Iepriekšējais periods]])-1))),\"-\")","v":{"v":0,"d":"0.00%"}},{"$f":"IFERROR(IF(Pamatdarbības_izdevumi[[#This Row],[Budžets]]=Pamatdarbības_izdevumi[[#This Row],[Pašreizējais periods]],0,IF(Pamatdarbības_izdevumi[[#This Row],[Pašreizējais periods]]>Pamatdarbības_izdevumi[[#This Row],[Budžets]],ABS((Pamatdarbības_izdevumi[[#This Row],[Pašreizējais periods]]/Pamatdarbības_izdevumi[[#This Row],[Budžets]])-1),IF(AND(Pamatdarbības_izdevumi[[#This Row],[Pašreizējais periods]]<Pamatdarbības_izdevumi[[#This Row],[Budžets]],Pamatdarbības_izdevumi[[#This Row],[Budžets]]<0),-((Pamatdarbības_izdevumi[[#This Row],[Pašreizējais periods]]/Pamatdarbības_izdevumi[[#This Row],[Budžets]])-1),(Pamatdarbības_izdevumi[[#This Row],[Pašreizējais periods]]/Pamatdarbības_izdevumi[[#This Row],[Budžets]])-1))),\"-\")","v":{"v":0,"d":"0.00%"}}]
[null,"Vispārīgie un administratīvie","Ārpakalpojumi",{"$nulls":3},{"$f":"IFERROR(IF(Pārdošanas_ieņēmumi=0,\"-\",Pamatdarbības_izdevumi[Pašreizējais periods]/Pārdošanas_ieņēmumi),\"-\")","v":"-"},{"$f":"IFERROR(IF(Pamatdarbības_izdevumi[[#This Row],[Iepriekšējais periods]]=Pamatdarbības_izdevumi[[#This Row],[Pašreizējais periods]],0,IF(Pamatdarbības_izdevumi[[#This Row],[Pašreizējais periods]]>Pamatdarbības_izdevumi[[#This Row],[Iepriekšējais periods]],ABS((Pamatdarbības_izdevumi[[#This Row],[Pašreizējais periods]]/Pamatdarbības_izdevumi[[#This Row],[Iepriekšējais periods]])-1),IF(AND(Pamatdarbības_izdevumi[[#This Row],[Pašreizējais periods]]<Pamatdarbības_izdevumi[[#This Row],[Iepriekšējais periods]],Pamatdarbības_izdevumi[[#This Row],[Iepriekšējais periods]]<0),-((Pamatdarbības_izdevumi[[#This Row],[Pašreizējais periods]]/Pamatdarbības_izdevumi[[#This Row],[Iepriekšējais periods]])-1),(Pamatdarbības_izdevumi[[#This Row],[Pašreizējais periods]]/Pamatdarbības_izdevumi[[#This Row],[Iepriekšējais periods]])-1))),\"-\")","v":{"v":0,"d":"0.00%"}},{"$f":"IFERROR(IF(Pamatdarbības_izdevumi[[#This Row],[Budžets]]=Pamatdarbības_izdevumi[[#This Row],[Pašreizējais periods]],0,IF(Pamatdarbības_izdevumi[[#This Row],[Pašreizējais periods]]>Pamatdarbības_izdevumi[[#This Row],[Budžets]],ABS((Pamatdarbības_izdevumi[[#This Row],[Pašreizējais periods]]/Pamatdarbības_izdevumi[[#This Row],[Budžets]])-1),IF(AND(Pamatdarbības_izdevumi[[#This Row],[Pašreizējais periods]]<Pamatdarbības_izdevumi[[#This Row],[Budžets]],Pamatdarbības_izdevumi[[#This Row],[Budžets]]<0),-((Pamatdarbības_izdevumi[[#This Row],[Pašreizējais periods]]/Pamatdarbības_izdevumi[[#This Row],[Budžets]])-1),(Pamatdarbības_izdevumi[[#This Row],[Pašreizējais periods]]/Pamatdarbības_izdevumi[[#This Row],[Budžets]])-1))),\"-\")","v":{"v":0,"d":"0.00%"}}]
[null,"Vispārīgie un administratīvie","Materiāli",{"$nulls":3},{"$f":"IFERROR(IF(Pārdošanas_ieņēmumi=0,\"-\",Pamatdarbības_izdevumi[Pašreizējais periods]/Pārdošanas_ieņēmumi),\"-\")","v":"-"},{"$f":"IFERROR(IF(Pamatdarbības_izdevumi[[#This Row],[Iepriekšējais periods]]=Pamatdarbības_izdevumi[[#This Row],[Pašreizējais periods]],0,IF(Pamatdarbības_izdevumi[[#This Row],[Pašreizējais periods]]>Pamatdarbības_izdevumi[[#This Row],[Iepriekšējais periods]],ABS((Pamatdarbības_izdevumi[[#This Row],[Pašreizējais periods]]/Pamatdarbības_izdevumi[[#This Row],[Iepriekšējais periods]])-1),IF(AND(Pamatdarbības_izdevumi[[#This Row],[Pašreizējais periods]]<Pamatdarbības_izdevumi[[#This Row],[Iepriekšējais periods]],Pamatdarbības_izdevumi[[#This Row],[Iepriekšējais periods]]<0),-((Pamatdarbības_izdevumi[[#This Row],[Pašreizējais periods]]/Pamatdarbības_izdevumi[[#This Row],[Iepriekšējais periods]])-1),(Pamatdarbības_izdevumi[[#This Row],[Pašreizējais periods]]/Pamatdarbības_izdevumi[[#This Row],[Iepriekšējais periods]])-1))),\"-\")","v":{"v":0,"d":"0.00%"}},{"$f":"IFERROR(IF(Pamatdarbības_izdevumi[[#This Row],[Budžets]]=Pamatdarbības_izdevumi[[#This Row],[Pašreizējais periods]],0,IF(Pamatdarbības_izdevumi[[#This Row],[Pašreizējais periods]]>Pamatdarbības_izdevumi[[#This Row],[Budžets]],ABS((Pamatdarbības_izdevumi[[#This Row],[Pašreizējais periods]]/Pamatdarbības_izdevumi[[#This Row],[Budžets]])-1),IF(AND(Pamatdarbības_izdevumi[[#This Row],[Pašreizējais periods]]<Pamatdarbības_izdevumi[[#This Row],[Budžets]],Pamatdarbības_izdevumi[[#This Row],[Budžets]]<0),-((Pamatdarbības_izdevumi[[#This Row],[Pašreizējais periods]]/Pamatdarbības_izdevumi[[#This Row],[Budžets]])-1),(Pamatdarbības_izdevumi[[#This Row],[Pašreizējais periods]]/Pamatdarbības_izdevumi[[#This Row],[Budžets]])-1))),\"-\")","v":{"v":0,"d":"0.00%"}}]
[null,"Vispārīgie un administratīvie","Maltītes un izklaide",{"$nulls":3},{"$f":"IFERROR(IF(Pārdošanas_ieņēmumi=0,\"-\",Pamatdarbības_izdevumi[Pašreizējais periods]/Pārdošanas_ieņēmumi),\"-\")","v":"-"},{"$f":"IFERROR(IF(Pamatdarbības_izdevumi[[#This Row],[Iepriekšējais periods]]=Pamatdarbības_izdevumi[[#This Row],[Pašreizējais periods]],0,IF(Pamatdarbības_izdevumi[[#This Row],[Pašreizējais periods]]>Pamatdarbības_izdevumi[[#This Row],[Iepriekšējais periods]],ABS((Pamatdarbības_izdevumi[[#This Row],[Pašreizējais periods]]/Pamatdarbības_izdevumi[[#This Row],[Iepriekšējais periods]])-1),IF(AND(Pamatdarbības_izdevumi[[#This Row],[Pašreizējais periods]]<Pamatdarbības_izdevumi[[#This Row],[Iepriekšējais periods]],Pamatdarbības_izdevumi[[#This Row],[Iepriekšējais periods]]<0),-((Pamatdarbības_izdevumi[[#This Row],[Pašreizējais periods]]/Pamatdarbības_izdevumi[[#This Row],[Iepriekšējais periods]])-1),(Pamatdarbības_izdevumi[[#This Row],[Pašreizējais periods]]/Pamatdarbības_izdevumi[[#This Row],[Iepriekšējais periods]])-1))),\"-\")","v":{"v":0,"d":"0.00%"}},{"$f":"IFERROR(IF(Pamatdarbības_izdevumi[[#This Row],[Budžets]]=Pamatdarbības_izdevumi[[#This Row],[Pašreizējais periods]],0,IF(Pamatdarbības_izdevumi[[#This Row],[Pašreizējais periods]]>Pamatdarbības_izdevumi[[#This Row],[Budžets]],ABS((Pamatdarbības_izdevumi[[#This Row],[Pašreizējais periods]]/Pamatdarbības_izdevumi[[#This Row],[Budžets]])-1),IF(AND(Pamatdarbības_izdevumi[[#This Row],[Pašreizējais periods]]<Pamatdarbības_izdevumi[[#This Row],[Budžets]],Pamatdarbības_izdevumi[[#This Row],[Budžets]]<0),-((Pamatdarbības_izdevumi[[#This Row],[Pašreizējais periods]]/Pamatdarbības_izdevumi[[#This Row],[Budžets]])-1),(Pamatdarbības_izdevumi[[#This Row],[Pašreizējais periods]]/Pamatdarbības_izdevumi[[#This Row],[Budžets]])-1))),\"-\")","v":{"v":0,"d":"0.00%"}}]
[null,"Vispārīgie un administratīvie","Īres maksa",{"$nulls":3},{"$f":"IFERROR(IF(Pārdošanas_ieņēmumi=0,\"-\",Pamatdarbības_izdevumi[Pašreizējais periods]/Pārdošanas_ieņēmumi),\"-\")","v":"-"},{"$f":"IFERROR(IF(Pamatdarbības_izdevumi[[#This Row],[Iepriekšējais periods]]=Pamatdarbības_izdevumi[[#This Row],[Pašreizējais periods]],0,IF(Pamatdarbības_izdevumi[[#This Row],[Pašreizējais periods]]>Pamatdarbības_izdevumi[[#This Row],[Iepriekšējais periods]],ABS((Pamatdarbības_izdevumi[[#This Row],[Pašreizējais periods]]/Pamatdarbības_izdevumi[[#This Row],[Iepriekšējais periods]])-1),IF(AND(Pamatdarbības_izdevumi[[#This Row],[Pašreizējais periods]]<Pamatdarbības_izdevumi[[#This Row],[Iepriekšējais periods]],Pamatdarbības_izdevumi[[#This Row],[Iepriekšējais periods]]<0),-((Pamatdarbības_izdevumi[[#This Row],[Pašreizējais periods]]/Pamatdarbības_izdevumi[[#This Row],[Iepriekšējais periods]])-1),(Pamatdarbības_izdevumi[[#This Row],[Pašreizējais periods]]/Pamatdarbības_izdevumi[[#This Row],[Iepriekšējais periods]])-1))),\"-\")","v":{"v":0,"d":"0.00%"}},{"$f":"IFERROR(IF(Pamatdarbības_izdevumi[[#This Row],[Budžets]]=Pamatdarbības_izdevumi[[#This Row],[Pašreizējais periods]],0,IF(Pamatdarbības_izdevumi[[#This Row],[Pašreizējais periods]]>Pamatdarbības_izdevumi[[#This Row],[Budžets]],ABS((Pamatdarbības_izdevumi[[#This Row],[Pašreizējais periods]]/Pamatdarbības_izdevumi[[#This Row],[Budžets]])-1),IF(AND(Pamatdarbības_izdevumi[[#This Row],[Pašreizējais periods]]<Pamatdarbības_izdevumi[[#This Row],[Budžets]],Pamatdarbības_izdevumi[[#This Row],[Budžets]]<0),-((Pamatdarbības_izdevumi[[#This Row],[Pašreizējais periods]]/Pamatdarbības_izdevumi[[#This Row],[Budžets]])-1),(Pamatdarbības_izdevumi[[#This Row],[Pašreizējais periods]]/Pamatdarbības_izdevumi[[#This Row],[Budžets]])-1))),\"-\")","v":{"v":0,"d":"0.00%"}}]
[null,"Vispārīgie un administratīvie","Tālrunis",{"$nulls":3},{"$f":"IFERROR(IF(Pārdošanas_ieņēmumi=0,\"-\",Pamatdarbības_izdevumi[Pašreizējais periods]/Pārdošanas_ieņēmumi),\"-\")","v":"-"},{"$f":"IFERROR(IF(Pamatdarbības_izdevumi[[#This Row],[Iepriekšējais periods]]=Pamatdarbības_izdevumi[[#This Row],[Pašreizējais periods]],0,IF(Pamatdarbības_izdevumi[[#This Row],[Pašreizējais periods]]>Pamatdarbības_izdevumi[[#This Row],[Iepriekšējais periods]],ABS((Pamatdarbības_izdevumi[[#This Row],[Pašreizējais periods]]/Pamatdarbības_izdevumi[[#This Row],[Iepriekšējais periods]])-1),IF(AND(Pamatdarbības_izdevumi[[#This Row],[Pašreizējais periods]]<Pamatdarbības_izdevumi[[#This Row],[Iepriekšējais periods]],Pamatdarbības_izdevumi[[#This Row],[Iepriekšējais periods]]<0),-((Pamatdarbības_izdevumi[[#This Row],[Pašreizējais periods]]/Pamatdarbības_izdevumi[[#This Row],[Iepriekšējais periods]])-1),(Pamatdarbības_izdevumi[[#This Row],[Pašreizējais periods]]/Pamatdarbības_izdevumi[[#This Row],[Iepriekšējais periods]])-1))),\"-\")","v":{"v":0,"d":"0.00%"}},{"$f":"IFERROR(IF(Pamatdarbības_izdevumi[[#This Row],[Budžets]]=Pamatdarbības_izdevumi[[#This Row],[Pašreizējais periods]],0,IF(Pamatdarbības_izdevumi[[#This Row],[Pašreizējais periods]]>Pamatdarbības_izdevumi[[#This Row],[Budžets]],ABS((Pamatdarbības_izdevumi[[#This Row],[Pašreizējais periods]]/Pamatdarbības_izdevumi[[#This Row],[Budžets]])-1),IF(AND(Pamatdarbības_izdevumi[[#This Row],[Pašreizējais periods]]<Pamatdarbības_izdevumi[[#This Row],[Budžets]],Pamatdarbības_izdevumi[[#This Row],[Budžets]]<0),-((Pamatdarbības_izdevumi[[#This Row],[Pašreizējais periods]]/Pamatdarbības_izdevumi[[#This Row],[Budžets]])-1),(Pamatdarbības_izdevumi[[#This Row],[Pašreizējais periods]]/Pamatdarbības_izdevumi[[#This Row],[Budžets]])-1))),\"-\")","v":{"v":0,"d":"0.00%"}}]
[null,"Vispārīgie un administratīvie","Komunālie pakalpojumi",{"$nulls":3},{"$f":"IFERROR(IF(Pārdošanas_ieņēmumi=0,\"-\",Pamatdarbības_izdevumi[Pašreizējais periods]/Pārdošanas_ieņēmumi),\"-\")","v":"-"},{"$f":"IFERROR(IF(Pamatdarbības_izdevumi[[#This Row],[Iepriekšējais periods]]=Pamatdarbības_izdevumi[[#This Row],[Pašreizējais periods]],0,IF(Pamatdarbības_izdevumi[[#This Row],[Pašreizējais periods]]>Pamatdarbības_izdevumi[[#This Row],[Iepriekšējais periods]],ABS((Pamatdarbības_izdevumi[[#This Row],[Pašreizējais periods]]/Pamatdarbības_izdevumi[[#This Row],[Iepriekšējais periods]])-1),IF(AND(Pamatdarbības_izdevumi[[#This Row],[Pašreizējais periods]]<Pamatdarbības_izdevumi[[#This Row],[Iepriekšējais periods]],Pamatdarbības_izdevumi[[#This Row],[Iepriekšējais periods]]<0),-((Pamatdarbības_izdevumi[[#This Row],[Pašreizējais periods]]/Pamatdarbības_izdevumi[[#This Row],[Iepriekšējais periods]])-1),(Pamatdarbības_izdevumi[[#This Row],[Pašreizējais periods]]/Pamatdarbības_izdevumi[[#This Row],[Iepriekšējais periods]])-1))),\"-\")","v":{"v":0,"d":"0.00%"}},{"$f":"IFERROR(IF(Pamatdarbības_izdevumi[[#This Row],[Budžets]]=Pamatdarbības_izdevumi[[#This Row],[Pašreizējais periods]],0,IF(Pamatdarbības_izdevumi[[#This Row],[Pašreizējais periods]]>Pamatdarbības_izdevumi[[#This Row],[Budžets]],ABS((Pamatdarbības_izdevumi[[#This Row],[Pašreizējais periods]]/Pamatdarbības_izdevumi[[#This Row],[Budžets]])-1),IF(AND(Pamatdarbības_izdevumi[[#This Row],[Pašreizējais periods]]<Pamatdarbības_izdevumi[[#This Row],[Budžets]],Pamatdarbības_izdevumi[[#This Row],[Budžets]]<0),-((Pamatdarbības_izdevumi[[#This Row],[Pašreizējais periods]]/Pamatdarbības_izdevumi[[#This Row],[Budžets]])-1),(Pamatdarbības_izdevumi[[#This Row],[Pašreizējais periods]]/Pamatdarbības_izdevumi[[#This Row],[Budžets]])-1))),\"-\")","v":{"v":0,"d":"0.00%"}}]
[null,"Vispārīgie un administratīvie","Nolietojums",{"$nulls":3},{"$f":"IFERROR(IF(Pārdošanas_ieņēmumi=0,\"-\",Pamatdarbības_izdevumi[Pašreizējais periods]/Pārdošanas_ieņēmumi),\"-\")","v":"-"},{"$f":"IFERROR(IF(Pamatdarbības_izdevumi[[#This Row],[Iepriekšējais periods]]=Pamatdarbības_izdevumi[[#This Row],[Pašreizējais periods]],0,IF(Pamatdarbības_izdevumi[[#This Row],[Pašreizējais periods]]>Pamatdarbības_izdevumi[[#This Row],[Iepriekšējais periods]],ABS((Pamatdarbības_izdevumi[[#This Row],[Pašreizējais periods]]/Pamatdarbības_izdevumi[[#This Row],[Iepriekšējais periods]])-1),IF(AND(Pamatdarbības_izdevumi[[#This Row],[Pašreizējais periods]]<Pamatdarbības_izdevumi[[#This Row],[Iepriekšējais periods]],Pamatdarbības_izdevumi[[#This Row],[Iepriekšējais periods]]<0),-((Pamatdarbības_izdevumi[[#This Row],[Pašreizējais periods]]/Pamatdarbības_izdevumi[[#This Row],[Iepriekšējais periods]])-1),(Pamatdarbības_izdevumi[[#This Row],[Pašreizējais periods]]/Pamatdarbības_izdevumi[[#This Row],[Iepriekšējais periods]])-1))),\"-\")","v":{"v":0,"d":"0.00%"}},{"$f":"IFERROR(IF(Pamatdarbības_izdevumi[[#This Row],[Budžets]]=Pamatdarbības_izdevumi[[#This Row],[Pašreizējais periods]],0,IF(Pamatdarbības_izdevumi[[#This Row],[Pašreizējais periods]]>Pamatdarbības_izdevumi[[#This Row],[Budžets]],ABS((Pamatdarbības_izdevumi[[#This Row],[Pašreizējais periods]]/Pamatdarbības_izdevumi[[#This Row],[Budžets]])-1),IF(AND(Pamatdarbības_izdevumi[[#This Row],[Pašreizējais periods]]<Pamatdarbības_izdevumi[[#This Row],[Budžets]],Pamatdarbības_izdevumi[[#This Row],[Budžets]]<0),-((Pamatdarbības_izdevumi[[#This Row],[Pašreizējais periods]]/Pamatdarbības_izdevumi[[#This Row],[Budžets]])-1),(Pamatdarbības_izdevumi[[#This Row],[Pašreizējais periods]]/Pamatdarbības_izdevumi[[#This Row],[Budžets]])-1))),\"-\")","v":{"v":0,"d":"0.00%"}}]
[null,"Vispārīgie un administratīvie","Apdrošināšana",{"$nulls":3},{"$f":"IFERROR(IF(Pārdošanas_ieņēmumi=0,\"-\",Pamatdarbības_izdevumi[Pašreizējais periods]/Pārdošanas_ieņēmumi),\"-\")","v":"-"},{"$f":"IFERROR(IF(Pamatdarbības_izdevumi[[#This Row],[Iepriekšējais periods]]=Pamatdarbības_izdevumi[[#This Row],[Pašreizējais periods]],0,IF(Pamatdarbības_izdevumi[[#This Row],[Pašreizējais periods]]>Pamatdarbības_izdevumi[[#This Row],[Iepriekšējais periods]],ABS((Pamatdarbības_izdevumi[[#This Row],[Pašreizējais periods]]/Pamatdarbības_izdevumi[[#This Row],[Iepriekšējais periods]])-1),IF(AND(Pamatdarbības_izdevumi[[#This Row],[Pašreizējais periods]]<Pamatdarbības_izdevumi[[#This Row],[Iepriekšējais periods]],Pamatdarbības_izdevumi[[#This Row],[Iepriekšējais periods]]<0),-((Pamatdarbības_izdevumi[[#This Row],[Pašreizējais periods]]/Pamatdarbības_izdevumi[[#This Row],[Iepriekšējais periods]])-1),(Pamatdarbības_izdevumi[[#This Row],[Pašreizējais periods]]/Pamatdarbības_izdevumi[[#This Row],[Iepriekšējais periods]])-1))),\"-\")","v":{"v":0,"d":"0.00%"}},{"$f":"IFERROR(IF(Pamatdarbības_izdevumi[[#This Row],[Budžets]]=Pamatdarbības_izdevumi[[#This Row],[Pašreizējais periods]],0,IF(Pamatdarbības_izdevumi[[#This Row],[Pašreizējais periods]]>Pamatdarbības_izdevumi[[#This Row],[Budžets]],ABS((Pamatdarbības_izdevumi[[#This Row],[Pašreizējais periods]]/Pamatdarbības_izdevumi[[#This Row],[Budžets]])-1),IF(AND(Pamatdarbības_izdevumi[[#This Row],[Pašreizējais periods]]<Pamatdarbības_izdevumi[[#This Row],[Budžets]],Pamatdarbības_izdevumi[[#This Row],[Budžets]]<0),-((Pamatdarbības_izdevumi[[#This Row],[Pašreizējais periods]]/Pamatdarbības_izdevumi[[#This Row],[Budžets]])-1),(Pamatdarbības_izdevumi[[#This Row],[Pašreizējais periods]]/Pamatdarbības_izdevumi[[#This Row],[Budžets]])-1))),\"-\")","v":{"v":0,"d":"0.00%"}}]
[null,"Vispārīgie un administratīvie","Remonts un uzturēšana",{"$nulls":3},{"$f":"IFERROR(IF(Pārdošanas_ieņēmumi=0,\"-\",Pamatdarbības_izdevumi[Pašreizējais periods]/Pārdošanas_ieņēmumi),\"-\")","v":"-"},{"$f":"IFERROR(IF(Pamatdarbības_izdevumi[[#This Row],[Iepriekšējais periods]]=Pamatdarbības_izdevumi[[#This Row],[Pašreizējais periods]],0,IF(Pamatdarbības_izdevumi[[#This Row],[Pašreizējais periods]]>Pamatdarbības_izdevumi[[#This Row],[Iepriekšējais periods]],ABS((Pamatdarbības_izdevumi[[#This Row],[Pašreizējais periods]]/Pamatdarbības_izdevumi[[#This Row],[Iepriekšējais periods]])-1),IF(AND(Pamatdarbības_izdevumi[[#This Row],[Pašreizējais periods]]<Pamatdarbības_izdevumi[[#This Row],[Iepriekšējais periods]],Pamatdarbības_izdevumi[[#This Row],[Iepriekšējais periods]]<0),-((Pamatdarbības_izdevumi[[#This Row],[Pašreizējais periods]]/Pamatdarbības_izdevumi[[#This Row],[Iepriekšējais periods]])-1),(Pamatdarbības_izdevumi[[#This Row],[Pašreizējais periods]]/Pamatdarbības_izdevumi[[#This Row],[Iepriekšējais periods]])-1))),\"-\")","v":{"v":0,"d":"0.00%"}},{"$f":"IFERROR(IF(Pamatdarbības_izdevumi[[#This Row],[Budžets]]=Pamatdarbības_izdevumi[[#This Row],[Pašreizējais periods]],0,IF(Pamatdarbības_izdevumi[[#This Row],[Pašreizējais periods]]>Pamatdarbības_izdevumi[[#This Row],[Budžets]],ABS((Pamatdarbības_izdevumi[[#This Row],[Pašreizējais periods]]/Pamatdarbības_izdevumi[[#This Row],[Budžets]])-1),IF(AND(Pamatdarbības_izdevumi[[#This Row],[Pašreizējais periods]]<Pamatdarbības_izdevumi[[#This Row],[Budžets]],Pamatdarbības_izdevumi[[#This Row],[Budžets]]<0),-((Pamatdarbības_izdevumi[[#This Row],[Pašreizējais periods]]/Pamatdarbības_izdevumi[[#This Row],[Budžets]])-1),(Pamatdarbības_izdevumi[[#This Row],[Pašreizējais periods]]/Pamatdarbības_izdevumi[[#This Row],[Budžets]])-1))),\"-\")","v":{"v":0,"d":"0.00%"}}]
[null,"Vispārīgie un administratīvie","Citi izdevumi (norādīt)",{"$nulls":3},{"$f":"IFERROR(IF(Pārdošanas_ieņēmumi=0,\"-\",Pamatdarbības_izdevumi[Pašreizējais periods]/Pārdošanas_ieņēmumi),\"-\")","v":"-"},{"$f":"IFERROR(IF(Pamatdarbības_izdevumi[[#This Row],[Iepriekšējais periods]]=Pamatdarbības_izdevumi[[#This Row],[Pašreizējais periods]],0,IF(Pamatdarbības_izdevumi[[#This Row],[Pašreizējais periods]]>Pamatdarbības_izdevumi[[#This Row],[Iepriekšējais periods]],ABS((Pamatdarbības_izdevumi[[#This Row],[Pašreizējais periods]]/Pamatdarbības_izdevumi[[#This Row],[Iepriekšējais periods]])-1),IF(AND(Pamatdarbības_izdevumi[[#This Row],[Pašreizējais periods]]<Pamatdarbības_izdevumi[[#This Row],[Iepriekšējais periods]],Pamatdarbības_izdevumi[[#This Row],[Iepriekšējais periods]]<0),-((Pamatdarbības_izdevumi[[#This Row],[Pašreizējais periods]]/Pamatdarbības_izdevumi[[#This Row],[Iepriekšējais periods]])-1),(Pamatdarbības_izdevumi[[#This Row],[Pašreizējais periods]]/Pamatdarbības_izdevumi[[#This Row],[Iepriekšējais periods]])-1))),\"-\")","v":{"v":0,"d":"0.00%"}},{"$f":"IFERROR(IF(Pamatdarbības_izdevumi[[#This Row],[Budžets]]=Pamatdarbības_izdevumi[[#This Row],[Pašreizējais periods]],0,IF(Pamatdarbības_izdevumi[[#This Row],[Pašreizējais periods]]>Pamatdarbības_izdevumi[[#This Row],[Budžets]],ABS((Pamatdarbības_izdevumi[[#This Row],[Pašreizējais periods]]/Pamatdarbības_izdevumi[[#This Row],[Budžets]])-1),IF(AND(Pamatdarbības_izdevumi[[#This Row],[Pašreizējais periods]]<Pamatdarbības_izdevumi[[#This Row],[Budžets]],Pamatdarbības_izdevumi[[#This Row],[Budžets]]<0),-((Pamatdarbības_izdevumi[[#This Row],[Pašreizējais periods]]/Pamatdarbības_izdevumi[[#This Row],[Budžets]])-1),(Pamatdarbības_izdevumi[[#This Row],[Pašreizējais periods]]/Pamatdarbības_izdevumi[[#This Row],[Budžets]])-1))),\"-\")","v":{"v":0,"d":"0.00%"}}]
[null,"Vispārīgie un administratīvie","Citi izdevumi (norādīt)",{"$nulls":3},{"$f":"IFERROR(IF(Pārdošanas_ieņēmumi=0,\"-\",Pamatdarbības_izdevumi[Pašreizējais periods]/Pārdošanas_ieņēmumi),\"-\")","v":"-"},{"$f":"IFERROR(IF(Pamatdarbības_izdevumi[[#This Row],[Iepriekšējais periods]]=Pamatdarbības_izdevumi[[#This Row],[Pašreizējais periods]],0,IF(Pamatdarbības_izdevumi[[#This Row],[Pašreizējais periods]]>Pamatdarbības_izdevumi[[#This Row],[Iepriekšējais periods]],ABS((Pamatdarbības_izdevumi[[#This Row],[Pašreizējais periods]]/Pamatdarbības_izdevumi[[#This Row],[Iepriekšējais periods]])-1),IF(AND(Pamatdarbības_izdevumi[[#This Row],[Pašreizējais periods]]<Pamatdarbības_izdevumi[[#This Row],[Iepriekšējais periods]],Pamatdarbības_izdevumi[[#This Row],[Iepriekšējais periods]]<0),-((Pamatdarbības_izdevumi[[#This Row],[Pašreizējais periods]]/Pamatdarbības_izdevumi[[#This Row],[Iepriekšējais periods]])-1),(Pamatdarbības_izdevumi[[#This Row],[Pašreizējais periods]]/Pamatdarbības_izdevumi[[#This Row],[Iepriekšējais periods]])-1))),\"-\")","v":{"v":0,"d":"0.00%"}},{"$f":"IFERROR(IF(Pamatdarbības_izdevumi[[#This Row],[Budžets]]=Pamatdarbības_izdevumi[[#This Row],[Pašreizējais periods]],0,IF(Pamatdarbības_izdevumi[[#This Row],[Pašreizējais periods]]>Pamatdarbības_izdevumi[[#This Row],[Budžets]],ABS((Pamatdarbības_izdevumi[[#This Row],[Pašreizējais periods]]/Pamatdarbības_izdevumi[[#This Row],[Budžets]])-1),IF(AND(Pamatdarbības_izdevumi[[#This Row],[Pašreizējais periods]]<Pamatdarbības_izdevumi[[#This Row],[Budžets]],Pamatdarbības_izdevumi[[#This Row],[Budžets]]<0),-((Pamatdarbības_izdevumi[[#This Row],[Pašreizējais periods]]/Pamatdarbības_izdevumi[[#This Row],[Budžets]])-1),(Pamatdarbības_izdevumi[[#This Row],[Pašreizējais periods]]/Pamatdarbības_izdevumi[[#This Row],[Budžets]])-1))),\"-\")","v":{"v":0,"d":"0.00%"}}]
[null,"Pamatdarbības izdevumu kopsumma",null,{"$f":"SUBTOTAL(109,Pamatdarbības_izdevumi[Iepriekšējais periods])","v":0},{"$f":"SUBTOTAL(109,Pamatdarbības_izdevumi[Budžets])","v":0},{"$f":"SUBTOTAL(109,Pamatdarbības_izdevumi[Pašreizējais periods])","v":0},{"$f":"SUBTOTAL(109,Pamatdarbības_izdevumi[Pašreizējais periods kā % no pārdošanas])","v":{"v":0,"d":"0.00%"}},{"$f":"SUBTOTAL(109,Pamatdarbības_izdevumi[% izmaiņas no iepriekšējā perioda])","v":{"v":0,"d":"0.00%"}},{"$f":"SUBTOTAL(109,Pamatdarbības_izdevumi[% izmaiņas no budžeta])","v":{"v":0,"d":"0.00%"}}]

{"sheet":"Nodokļi","index":4,"n_rows":10,"n_cols":9,"rows_kept":10,"merged":[[0,7,2,8]]}
[null,{"$f":"Darbgrāmatas_nosaukums","v":"Peļņas vai zaudējumu aprēķins"}]
[null,{"$f":"Uzņēmuma_nosaukums","v":"Uzņēmuma nosaukums"},"Norādīts ar 000"]
[null,"Nodokļi",{"$f":"IFERROR(Nodokļi[[#Totals],[Pašreizējais periods]],\"-\")","v":0}]
[null,"Veids","Apraksts","Iepriekšējais periods","Budžets","Pašreizējais periods","Pašreizējais periods kā % no pārdošanas","% izmaiņas no iepriekšējā perioda","% izmaiņas no budžeta"]
[null,"Nodokļi","Ienākuma nodokļi",{"$nulls":3},{"$f":"IFERROR(IF(Pārdošanas_ieņēmumi=0,\"-\",Nodokļi[Pašreizējais periods]/Pārdošanas_ieņēmumi),\"-\")","v":"-"},{"$f":"IFERROR(IF(Nodokļi[[#This Row],[Iepriekšējais periods]]=Nodokļi[[#This Row],[Pašreizējais periods]],0,IF(Nodokļi[[#This Row],[Pašreizējais periods]]>Nodokļi[[#This Row],[Iepriekšējais periods]],ABS((Nodokļi[[#This Row],[Pašreizējais periods]]/Nodokļi[[#This Row],[Iepriekšējais periods]])-1),IF(AND(Nodokļi[[#This Row],[Pašreizējais periods]]<Nodokļi[[#This Row],[Iepriekšējais periods]],Nodokļi[[#This Row],[Iepriekšējais periods]]<0),-((Nodokļi[[#This Row],[Pašreizējais periods]]/Nodokļi[[#This Row],[Iepriekšējais periods]])-1),(Nodokļi[[#This Row],[Pašreizējais periods]]/Nodokļi[[#This Row],[Iepriekšējais periods]])-1))),\"-\")","v":{"v":0,"d":"0.00%"}},{"$f":"IFERROR(IF(Nodokļi[[#This Row],[Budžets]]=Nodokļi[[#This Row],[Pašreizējais periods]],0,IF(Nodokļi[[#This Row],[Pašreizējais periods]]>Nodokļi[[#This Row],[Budžets]],ABS((Nodokļi[[#This Row],[Pašreizējais periods]]/Nodokļi[[#This Row],[Budžets]])-1),IF(AND(Nodokļi[[#This Row],[Pašreizējais periods]]<Nodokļi[[#This Row],[Budžets]],Nodokļi[[#This Row],[Budžets]]<0),-((Nodokļi[[#This Row],[Pašreizējais periods]]/Nodokļi[[#This Row],[Budžets]])-1),(Nodokļi[[#This Row],[Pašreizējais periods]]/Nodokļi[[#This Row],[Budžets]])-1))),\"-\")","v":{"v":0,"d":"0.00%"}}]
[null,"Nodokļi","Algas nodokļi",{"$nulls":3},{"$f":"IFERROR(IF(Pārdošanas_ieņēmumi=0,\"-\",Nodokļi[Pašreizējais periods]/Pārdošanas_ieņēmumi),\"-\")","v":"-"},{"$f":"IFERROR(IF(Nodokļi[[#This Row],[Iepriekšējais periods]]=Nodokļi[[#This Row],[Pašreizējais periods]],0,IF(Nodokļi[[#This Row],[Pašreizējais periods]]>Nodokļi[[#This Row],[Iepriekšējais periods]],ABS((Nodokļi[[#This Row],[Pašreizējais periods]]/Nodokļi[[#This Row],[Iepriekšējais periods]])-1),IF(AND(Nodokļi[[#This Row],[Pašreizējais periods]]<Nodokļi[[#This Row],[Iepriekšējais periods]],Nodokļi[[#This Row],[Iepriekšējais periods]]<0),-((Nodokļi[[#This Row],[Pašreizējais periods]]/Nodokļi[[#This Row],[Iepriekšējais periods]])-1),(Nodokļi[[#This Row],[Pašreizējais periods]]/Nodokļi[[#This Row],[Iepriekšējais periods]])-1))),\"-\")","v":{"v":0,"d":"0.00%"}},{"$f":"IFERROR(IF(Nodokļi[[#This Row],[Budžets]]=Nodokļi[[#This Row],[Pašreizējais periods]],0,IF(Nodokļi[[#This Row],[Pašreizējais periods]]>Nodokļi[[#This Row],[Budžets]],ABS((Nodokļi[[#This Row],[Pašreizējais periods]]/Nodokļi[[#This Row],[Budžets]])-1),IF(AND(Nodokļi[[#This Row],[Pašreizējais periods]]<Nodokļi[[#This Row],[Budžets]],Nodokļi[[#This Row],[Budžets]]<0),-((Nodokļi[[#This Row],[Pašreizējais periods]]/Nodokļi[[#This Row],[Budžets]])-1),(Nodokļi[[#This Row],[Pašreizējais periods]]/Nodokļi[[#This Row],[Budžets]])-1))),\"-\")","v":{"v":0,"d":"0.00%"}}]
[null,"Nodokļi","Nekustamā īpašuma nodokļi",{"$nulls":3},{"$f":"IFERROR(IF(Pārdošanas_ieņēmumi=0,\"-\",Nodokļi[Pašreizējais periods]/Pārdošanas_ieņēmumi),\"-\")","v":"-"},{"$f":"IFERROR(IF(Nodokļi[[#This Row],[Iepriekšējais periods]]=Nodokļi[[#This Row],[Pašreizējais periods]],0,IF(Nodokļi[[#This Row],[Pašreizējais periods]]>Nodokļi[[#This Row],[Iepriekšējais periods]],ABS((Nodokļi[[#This Row],[Pašreizējais periods]]/Nodokļi[[#This Row],[Iepriekšējais periods]])-1),IF(AND(Nodokļi[[#This Row],[Pašreizējais periods]]<Nodokļi[[#This Row],[Iepriekšējais periods]],Nodokļi[[#This Row],[Iepriekšējais periods]]<0),-((Nodokļi[[#This Row],[Pašreizējais periods]]/Nodokļi[[#This Row],[Iepriekšējais periods]])-1),(Nodokļi[[#This Row],[Pašreizējais periods]]/Nodokļi[[#This Row],[Iepriekšējais periods]])-1))),\"-\")","v":{"v":0,"d":"0.00%"}},{"$f":"IFERROR(IF(Nodokļi[[#This Row],[Budžets]]=Nodokļi[[#This Row],[Pašreizējais periods]],0,IF(Nodokļi[[#This Row],[Pašreizējais periods]]>Nodokļi[[#This Row],[Budžets]],ABS((Nodokļi[[#This Row],[Pašreizējais periods]]/Nodokļi[[#This Row],[Budžets]])-1),IF(AND(Nodokļi[[#This Row],[Pašreizējais periods]]<Nodokļi[[#This Row],[Budžets]],Nodokļi[[#This Row],[Budžets]]<0),-((Nodokļi[[#This Row],[Pašreizējais periods]]/Nodokļi[[#This Row],[Budžets]])-1),(Nodokļi[[#This Row],[Pašreizējais periods]]/Nodokļi[[#This Row],[Budžets]])-1))),\"-\")","v":{"v":0,"d":"0.00%"}}]
[null,"Nodokļi","Citi nodokļi (norādīt)",{"$nulls":3},{"$f":"IFERROR(IF(Pārdošanas_ieņēmumi=0,\"-\",Nodokļi[Pašreizējais periods]/Pārdošanas_ieņēmumi),\"-\")","v":"-"},{"$f":"IFERROR(IF(Nodokļi[[#This Row],[Iepriekšējais periods]]=Nodokļi[[#This Row],[Pašreizējais periods]],0,IF(Nodokļi[[#This Row],[Pašreizējais periods]]>Nodokļi[[#This Row],[Iepriekšējais periods]],ABS((Nodokļi[[#This Row],[Pašreizējais periods]]/Nodokļi[[#This Row],[Iepriekšējais periods]])-1),IF(AND(Nodokļi[[#This Row],[Pašreizējais periods]]<Nodokļi[[#This Row],[Iepriekšējais periods]],Nodokļi[[#This Row],[Iepriekšējais periods]]<0),-((Nodokļi[[#This Row],[Pašreizējais periods]]/Nodokļi[[#This Row],[Iepriekšējais periods]])-1),(Nodokļi[[#This Row],[Pašreizējais periods]]/Nodokļi[[#This Row],[Iepriekšējais periods]])-1))),\"-\")","v":{"v":0,"d":"0.00%"}},{"$f":"IFERROR(IF(Nodokļi[[#This Row],[Budžets]]=Nodokļi[[#This Row],[Pašreizējais periods]],0,IF(Nodokļi[[#This Row],[Pašreizējais periods]]>Nodokļi[[#This Row],[Budžets]],ABS((Nodokļi[[#This Row],[Pašreizējais periods]]/Nodokļi[[#This Row],[Budžets]])-1),IF(AND(Nodokļi[[#This Row],[Pašreizējais periods]]<Nodokļi[[#This Row],[Budžets]],Nodokļi[[#This Row],[Budžets]]<0),-((Nodokļi[[#This Row],[Pašreizējais periods]]/Nodokļi[[#This Row],[Budžets]])-1),(Nodokļi[[#This Row],[Pašreizējais periods]]/Nodokļi[[#This Row],[Budžets]])-1))),\"-\")","v":{"v":0,"d":"0.00%"}}]
[null,"Nodokļi","Citi nodokļi (norādīt)",{"$nulls":3},{"$f":"IFERROR(IF(Pārdošanas_ieņēmumi=0,\"-\",Nodokļi[Pašreizējais periods]/Pārdošanas_ieņēmumi),\"-\")","v":"-"},{"$f":"IFERROR(IF(Nodokļi[[#This Row],[Iepriekšējais periods]]=Nodokļi[[#This Row],[Pašreizējais periods]],0,IF(Nodokļi[[#This Row],[Pašreizējais periods]]>Nodokļi[[#This Row],[Iepriekšējais periods]],ABS((Nodokļi[[#This Row],[Pašreizējais periods]]/Nodokļi[[#This Row],[Iepriekšējais periods]])-1),IF(AND(Nodokļi[[#This Row],[Pašreizējais periods]]<Nodokļi[[#This Row],[Iepriekšējais periods]],Nodokļi[[#This Row],[Iepriekšējais periods]]<0),-((Nodokļi[[#This Row],[Pašreizējais periods]]/Nodokļi[[#This Row],[Iepriekšējais periods]])-1),(Nodokļi[[#This Row],[Pašreizējais periods]]/Nodokļi[[#This Row],[Iepriekšējais periods]])-1))),\"-\")","v":{"v":0,"d":"0.00%"}},{"$f":"IFERROR(IF(Nodokļi[[#This Row],[Budžets]]=Nodokļi[[#This Row],[Pašreizējais periods]],0,IF(Nodokļi[[#This Row],[Pašreizējais periods]]>Nodokļi[[#This Row],[Budžets]],ABS((Nodokļi[[#This Row],[Pašreizējais periods]]/Nodokļi[[#This Row],[Budžets]])-1),IF(AND(Nodokļi[[#This Row],[Pašreizējais periods]]<Nodokļi[[#This Row],[Budžets]],Nodokļi[[#This Row],[Budžets]]<0),-((Nodokļi[[#This Row],[Pašreizējais periods]]/Nodokļi[[#This Row],[Budžets]])-1),(Nodokļi[[#This Row],[Pašreizējais periods]]/Nodokļi[[#This Row],[Budžets]])-1))),\"-\")","v":{"v":0,"d":"0.00%"}}]
[null,"Nodokļu kopsumma",null,{"$f":"SUBTOTAL(109,Nodokļi[Iepriekšējais periods])","v":0},{"$f":"SUBTOTAL(109,Nodokļi[Budžets])","v":0},{"$f":"SUBTOTAL(109,Nodokļi[Pašreizējais periods])","v":0},{"$f":"IFERROR(SUBTOTAL(109,Nodokļi[Pašreizējais periods kā % no pārdošanas]),\"-\")","v":{"v":0,"d":"0.00%"}},{"$f":"SUBTOTAL(109,Nodokļi[% izmaiņas no iepriekšējā perioda])","v":{"v":0,"d":"0.00%"}},{"$f":"SUBTOTAL(109,Nodokļi[% izmaiņas no budžeta])","v":{"v":0,"d":"0.00%"}}]

{"sheet":"Kategorijas","index":5,"n_rows":8,"n_cols":2,"rows_kept":8}
[null,"Kategorijas"]
[null,"Pārdošanas ieņēmumi"]
[null,"Pārdošanas izmaksas"]
[null,"Ienākumi"]
[null,"Pārdošana un mārketings"]
[null,"Izpēte un attīstība"]
[null,"Vispārīgie un administratīvie"]
[null,"Nodokļi"]